Workbook

Sheet Garman Kohlhagen
A1: Calculating Implied Volatility
A2: Reversed Garman Kohlhagen formula
A4: Expiration Date | B4: Implied volatility | C4: Option price | D4: Price from formula | E4: Today Date | F4: Networkdays | G4: Annualised time until expiration | H4: Strike rate | I4: Spot rate | J4: Annualised EUR Risk-free rate | K4: Annualised USD Risk-free rate
A5: 2015-04-17 | B5: 0.01 | C5: 1.9 | D5: =GarmanKohlhagen("Call", I5, H5, G5, K5, J5, B5) -> 3.059315957 | E5: 2015-03-27 | F5: =NETWORKDAYS(E5, A5) -> 16 | G5: =F5/250 -> 0.064 | H5: 105.5 | I5: 108.56 | J5: 0.00039 | K5: 0.0003 | N5: Total number of option | O5: 186
A6: 2015-04-17 | B6: 0.01 | C6: 1.26 | D6: 1.559344757 | E6: 2015-03-27 | F6: 16 | G6: 0.064 | H6: 107 | I6: 108.56 | J6: 0.00039 | K6: 0.0003 | N6: Total call | O6: 81
A7: 2015-04-17 | B7: 0.06387626955 | C7: 1.35 | D7: 1.350528872 | E7: 2015-03-27 | F7: 16 | G7: 0.064 | H7: 107.5 | I7: 108.56 | J7: 0.00039 | K7: 0.0003 | N7: Total put | O7: 105
A8: 2015-04-17 | B8: 0.04495100961 | C8: 0.82 | D8: 0.8207344603 | E8: 2015-03-27 | F8: 16 | G8: 0.064 | H8: 108 | I8: 108.56 | J8: 0.00039 | K8: 0.0003 | N8: Total error | O8: =O5-O11 -> 23
A9: 2015-04-17 | B9: 0.1788106004 | C9: 1.75 | D9: 1.750443467 | E9: 2015-03-27 | F9: 16 | G9: 0.064 | H9: 109 | I9: 108.56 | J9: 0.00039 | K9: 0.0003 | N9: Error in Call | O9: 5 | P9: =O9/O6 -> 0.06172839506
A10: 2015-04-17 | B10: 0.08114144581 | C10: 0.5 | D10: 0.500242603 | E10: 2015-03-27 | F10: 16 | G10: 0.064 | H10: 109.5 | I10: 108.56 | J10: 0.00039 | K10: 0.0003 | N10: Error in Put | O10: 18 | P10: =O10/O7 -> 0.1714285714
A11: 2015-04-17 | B11: 0.08194041982 | C11: 0.36 | D11: 0.3602144387 | E11: 2015-03-27 | F11: 16 | G11: 0.064 | H11: 110 | I11: 108.56 | J11: 0.00039 | K11: 0.0003 | N11: Total implied volatility outtake | O11: 163
A12: 2015-04-17 | B12: 0.1743845721 | C12: 1.11 | D12: 1.110586481 | E12: 2015-03-27 | F12: 16 | G12: 0.064 | H12: 110.5 | I12: 108.56 | J12: 0.00039 | K12: 0.0003 | N12: Outtakes from call | O12: 76
A13: 2015-04-17 | B13: 0.1480023811 | C13: 0.7 | D13: 0.7002027842 | E13: 2015-03-27 | F13: 16 | G13: 0.064 | H13: 111 | I13: 108.56 | J13: 0.00039 | K13: 0.0003 | N13: Outtakes from put | O13: 86
A14: 2015-04-17 | B14: 0.09266981074 | C14: 0.11 | D14: 0.1101591476 | E14: 2015-03-27 | F14: 16 | G14: 0.064 | H14: 112 | I14: 108.56 | J14: 0.00039 | K14: 0.0003 | N14: IV Mean | O14: =AVERAGE(B5:B167) -> 0.1261164605
A15: 2015-04-17 | B15: 0.1580043667 | C15: 0.45 | D15: 0.4501115175 | E15: 2015-03-27 | F15: 16 | G15: 0.064 | H15: 112.5 | I15: 108.56 | J15: 0.00039 | K15: 0.0003 | N15: IV Max | O15: =MAX(B8:B167) -> 0.4752929356
A16: 2015-04-17 | B16: 0.1556051495 | C16: 0.35 | D16: 0.3506396853 | E16: 2015-03-27 | F16: 16 | G16: 0.064 | H16: 113 | I16: 108.56 | J16: 0.00039 | K16: 0.0003 | N16: IV Min | O16: =MIN(B9:B167) -> 0.001
A17: 2015-04-17 | B17: 0.1584385681 | C17: 0.24 | D17: 0.2400210186 | E17: 2015-03-27 | F17: 16 | G17: 0.064 | H17: 114 | I17: 108.56 | J17: 0.00039 | K17: 0.0003 | N17: IV Mode | O17: =MODE(B8:B167) -> 0.01
A18: 2015-04-17 | B18: 0.1584385681 | C18: 0.24 | D18: 0.2400210186 | E18: 2015-03-27 | F18: 16 | G18: 0.064 | H18: 114 | I18: 108.56 | J18: 0.00039 | K18: 0.0003
A19: 2015-04-17 | B19: 0.2132387851 | C19: 0.44 | D19: 0.4400067714 | E19: 2015-03-27 | F19: 16 | G19: 0.064 | H19: 115 | I19: 108.56 | J19: 0.00039 | K19: 0.0003
A20: 2015-04-17 | B20: 0.2133306412 | C20: 0.44 | D20: 0.4405920565 | E20: 2015-03-27 | F20: 16 | G20: 0.064 | H20: 115 | I20: 108.56 | J20: 0.00039 | K20: 0.0003
A21: 2015-04-17 | B21: 0.1907116727 | C21: 0.21 | D21: 0.2101056441 | E21: 2015-03-27 | F21: 16 | G21: 0.064 | H21: 116 | I21: 108.56 | J21: 0.00039 | K21: 0.0003
A22: 2015-04-17 | B22: 0.3700266431 | C22: 1.37 | D22: 1.370125669 | E22: 2015-03-27 | F22: 16 | G22: 0.064 | H22: 116.5 | I22: 108.56 | J22: 0.00039 | K22: 0.0003
A23: 2015-04-17 | B23: 0.360633035 | C23: 1.19 | D23: 1.190740269 | E23: 2015-03-27 | F23: 16 | G23: 0.064 | H23: 117 | I23: 108.56 | J23: 0.00039 | K23: 0.0003
A24: 2015-04-17 | B24: 0.3519529924 | C24: 1.03 | D24: 1.030105928 | E24: 2015-03-27 | F24: 16 | G24: 0.064 | H24: 117.5 | I24: 108.56 | J24: 0.00039 | K24: 0.0003
A25: 2015-05-15 | B25: 0.1325460528 | C25: 3.34 | D25: 3.340984319 | E25: 2015-03-27 | F25: 36 | G25: 0.144 | H25: 106.5 | I25: 108.56 | J25: 0.00039 | K25: 0.0003
A26: 2015-05-15 | B26: 0.1484271864 | C26: 3.28 | D26: 3.279999641 | E26: 2015-03-27 | F26: 36 | G26: 0.144 | H26: 107 | I26: 108.56 | J26: 0.00039 | K26: 0.0003
A27: 2015-05-15 | B27: 0.1662296429 | C27: 3.28 | D27: 3.279999869 | E27: 2015-03-27 | F27: 36 | G27: 0.144 | H27: 107.5 | I27: 108.56 | J27: 0.00039 | K27: 0.0003
A28: 2015-05-15 | B28: 0.1270775924 | C28: 2.65 | D28: 2.649999663 | E28: 2015-03-27 | F28: 36 | G28: 0.144 | H28: 107.5 | I28: 108.56 | J28: 0.00039 | K28: 0.0003
A29: 2015-05-15 | B29: 0.06703101085 | C29: 1.13 | D29: 1.130787408 | E29: 2015-03-27 | F29: 36 | G29: 0.144 | H29: 108.5 | I29: 108.56 | J29: 0.00039 | K29: 0.0003
A30: 2015-05-15 | B30: 0.1521122533 | C30: 2.29 | D30: 2.289999979 | E30: 2015-03-27 | F30: 36 | G30: 0.144 | H30: 109 | I30: 108.56 | J30: 0.00039 | K30: 0.0003
A31: 2015-05-15 | B31: 0.1541388499 | C31: 2.1 | D31: 2.100674524 | E31: 2015-03-27 | F31: 36 | G31: 0.144 | H31: 109.5 | I31: 108.56 | J31: 0.00039 | K31: 0.0003
A32: 2015-05-15 | B32: 0.1018057175 | C32: 1.06 | D32: 1.060582367 | E32: 2015-03-27 | F32: 36 | G32: 0.144 | H32: 110 | I32: 108.56 | J32: 0.00039 | K32: 0.0003
A33: 2015-05-15 | B33: 0.1076810089 | C33: 0.98 | D33: 0.9799988628 | E33: 2015-03-27 | F33: 36 | G33: 0.144 | H33: 110.5 | I33: 108.56 | J33: 0.00039 | K33: 0.0003
A34: 2015-05-15 | B34: 0.1953863182 | C34: 2.17 | D34: 2.170526331 | E34: 2015-03-27 | F34: 36 | G34: 0.144 | H34: 111 | I34: 108.56 | J34: 0.00039 | K34: 0.0003
A35: 2015-05-15 | B35: 0.08735693977 | C35: 0.34 | D35: 0.3399955207 | E35: 2015-03-27 | F35: 36 | G35: 0.144 | H35: 112 | I35: 108.56 | J35: 0.00039 | K35: 0.0003
A36: 2015-05-15 | B36: 0.1968248146 | C36: 1.69 | D36: 1.690046236 | E36: 2015-03-27 | F36: 36 | G36: 0.144 | H36: 112.5 | I36: 108.56 | J36: 0.00039 | K36: 0.0003
A37: 2015-05-15 | B37: 0.1079266465 | C37: 0.32 | D37: =GarmanKohlhagen("Call", I37, H37, G37, K37, J37, B37) -> 0.3200824004 | E37: 2015-03-27 | F37: =NETWORKDAYS(E37, A37) -> 36 | G37: =F37/250 -> 0.144 | H37: 113.5 | I37: 108.56 | J37: 0.00039 | K37: 0.0003
A38: 2015-05-15 | B38: 0.1330448376 | C38: 0.25 | D38: 0.250711656 | E38: 2015-03-27 | F38: 36 | G38: 0.144 | H38: 116 | I38: 108.56 | J38: 0.00039 | K38: 0.0003
A39: 2015-05-15 | B39: 0.1564209668 | C39: 0.33 | D39: 0.3301955761 | E39: 2015-03-27 | F39: 36 | G39: 0.144 | H39: 117 | I39: 108.56 | J39: 0.00039 | K39: 0.0003
A40: 2015-05-15 | B40: 0.1281838667 | C40: 0.05 | D40: 0.05038949964 | E40: 2015-03-27 | F40: 36 | G40: 0.144 | H40: 119.5 | I40: 108.56 | J40: 0.00039 | K40: 0.0003
A41: 2015-06-19 | B41: 0.001 | C41: 5.94 | D41: 8.556989654 | E41: 2015-03-27 | F41: 61 | G41: 0.244 | H41: 100 | I41: 108.56 | J41: 0.00039 | K41: 0.0003
A42: 2015-06-19 | B42: 0.001 | C42: 3.81 | D42: 4.557282443 | E42: 2015-03-27 | F42: 61 | G42: 0.244 | H42: 104 | I42: 108.56 | J42: 0.00039 | K42: 0.0003
A43: 2015-09-18 | B43: 0.209032832 | C43: 8.25 | D43: 8.249999361 | E43: 2015-03-27 | F43: 126 | G43: 0.504 | H43: 105 | I43: 108.56 | J43: 0.00039 | K43: 0.0003
A44: 2015-06-19 | B44: 0.1469308363 | C44: 4.55 | D44: 4.54999916 | E44: 2015-03-27 | F44: 61 | G44: 0.244 | H44: 106 | I44: 108.56 | J44: 0.00039 | K44: 0.0003
A45: 2015-06-19 | B45: 0.04464476407 | C45: 2.31 | D45: 2.309994499 | E45: 2015-03-27 | F45: 61 | G45: 0.244 | H45: 106.5 | I45: 108.56 | J45: 0.00039 | K45: 0.0003
A46: 2015-06-19 | B46: 0.1184349027 | C46: 3.37 | D46: 3.369999345 | E46: 2015-03-27 | F46: 61 | G46: 0.244 | H46: 107 | I46: 108.56 | J46: 0.00039 | K46: 0.0003
A47: 2015-06-19 | B47: 0.1500526372 | C47: 3.75 | D47: 3.749999891 | E47: 2015-03-27 | F47: 61 | G47: 0.244 | H47: 107.5 | I47: 108.56 | J47: 0.00039 | K47: 0.0003
A48: 2015-06-19 | B48: 0.1238399337 | C48: 2.93 | D48: 2.929999953 | E48: 2015-03-27 | F48: 61 | G48: 0.244 | H48: 108 | I48: 108.56 | J48: 0.00039 | K48: 0.0003
A49: 2015-06-19 | B49: 0.08282122659 | C49: 1.8 | D49: 1.800000002 | E49: 2015-03-27 | F49: 61 | G49: 0.244 | H49: 108.5 | I49: 108.56 | J49: 0.00039 | K49: 0.0003
A50: 2015-06-19 | B50: 0.08363193411 | C50: 1.58 | D50: 1.579999944 | E50: 2015-03-27 | F50: 61 | G50: 0.244 | H50: 109 | I50: 108.56 | J50: 0.00039 | K50: 0.0003
A51: 2015-06-19 | B51: 0.08436287243 | C51: 1.38 | D51: 1.379999726 | E51: 2015-03-27 | F51: 61 | G51: 0.244 | H51: 109.5 | I51: 108.56 | J51: 0.00039 | K51: 0.0003
A52: 2015-06-19 | B52: 0.1282627599 | C52: 2.1 | D52: 2.099999778 | E52: 2015-03-27 | F52: 61 | G52: 0.244 | H52: 110 | I52: 108.56 | J52: 0.00039 | K52: 0.0003
A53: 2015-06-19 | B53: 0.11826215 | C53: 1.52 | D53: 1.519999298 | E53: 2015-03-27 | F53: 61 | G53: 0.244 | H53: 111 | I53: 108.56 | J53: 0.00039 | K53: 0.0003
A54: 2015-06-19 | B54: 0.1336300011 | C54: 1.5 | D54: 1.500845623 | E54: 2015-03-27 | F54: 61 | G54: 0.244 | H54: 112 | I54: 108.56 | J54: 0.00039 | K54: 0.0003
A55: 2015-06-19 | B55: 0.08756042053 | C55: 0.31 | D55: 0.3103613269 | E55: 2015-03-27 | F55: 61 | G55: 0.244 | H55: 114 | I55: 108.56 | J55: 0.00039 | K55: 0.0003
A56: 2015-06-19 | B56: 0.2174401202 | C56: 2.38 | D56: 2.380781583 | E56: 2015-03-27 | F56: 61 | G56: 0.244 | H56: 114.5 | I56: 108.56 | J56: 0.00039 | K56: 0.0003
A57: 2015-06-19 | B57: 0.1132099739 | C57: 0.49 | D57: 0.4904747367 | E57: 2015-03-27 | F57: 61 | G57: 0.244 | H57: 115 | I57: 108.56 | J57: 0.00039 | K57: 0.0003
A58: 2015-06-19 | B58: 0.1073599969 | C58: 0.3 | D58: 0.3007249327 | E58: 2015-03-27 | F58: 61 | G58: 0.244 | H58: 116 | I58: 108.56 | J58: 0.00039 | K58: 0.0003
A59: 2015-06-19 | B59: 0.1031614671 | C59: 0.18 | D59: 0.1802250825 | E59: 2015-03-27 | F59: 61 | G59: 0.244 | H59: 117 | I59: 108.56 | J59: 0.00039 | K59: 0.0003
A60: 2015-06-19 | B60: 0.2760495516 | C60: 2.55 | D60: 2.550783114 | E60: 2015-03-27 | F60: 61 | G60: 0.244 | H60: 118 | I60: 108.56 | J60: 0.00039 | K60: 0.0003
A61: 2015-06-19 | B61: 0.104938142 | C61: 0.09 | D61: 0.09023340386 | E61: 2015-03-27 | F61: 61 | G61: 0.244 | H61: 119 | I61: 108.56 | J61: 0.00039 | K61: 0.0003
A62: 2015-06-19 | B62: 0.2823257335 | C62: 2.31 | D62: 2.310187787 | E62: 2015-03-27 | F62: 61 | G62: 0.244 | H62: 119.5 | I62: 108.56 | J62: 0.00039 | K62: 0.0003
A63: 2015-09-18 | B63: 0.01 | C63: 8.05 | D63: 8.5537824 | E63: 2015-03-27 | F63: 126 | G63: 0.504 | H63: 100 | I63: 108.56 | J63: 0.00039 | K63: 0.0003
A64: 2015-09-18 | B64: 0.07024998549 | C64: 3.65 | D64: 3.649996653 | E64: 2015-03-27 | F64: 126 | G64: 0.504 | H64: 106 | I64: 108.56 | J64: 0.00039 | K64: 0.0003
A65: 2015-09-18 | B65: 0.09364324813 | C65: 1.85 | D65: 1.849998964 | E65: 2015-03-27 | F65: 126 | G65: 0.504 | H65: 111 | I65: 108.56 | J65: 0.00039 | K65: 0.0003
A66: 2015-09-18 | B66: 0.1198975472 | C66: 2.27 | D66: 2.269998781 | E66: 2015-03-27 | F66: 126 | G66: 0.504 | H66: 112 | I66: 108.56 | J66: 0.00039 | K66: 0.0003
A67: 2015-09-18 | B67: 0.1163947063 | C67: 1.85 | D67: 1.849998082 | E67: 2015-03-27 | F67: 126 | G67: 0.504 | H67: 113 | I67: 108.56 | J67: 0.00039 | K67: 0.0003
A68: 2015-09-18 | B68: 0.1145298811 | C68: 1.52 | D68: 1.519997325 | E68: 2015-03-27 | F68: 126 | G68: 0.504 | H68: 114 | I68: 108.56 | J68: 0.00039 | K68: 0.0003
A69: 2015-09-18 | B69: 0.1113822055 | C69: 1.2 | D69: =GarmanKohlhagen("Call", I69, H69, G69, K69, J69, B69) -> 1.199996382 | E69: 2015-03-27 | F69: =NETWORKDAYS(E69, A69) -> 126 | G69: =F69/250 -> 0.504 | H69: 115 | I69: 108.56 | J69: 0.00039 | K69: 0.0003
A70: 2015-09-18 | B70: 0.1128808302 | C70: 0.85 | D70: 0.8499945295 | E70: 2015-03-27 | F70: 126 | G70: 0.504 | H70: 117 | I70: 108.56 | J70: 0.00039 | K70: 0.0003
A71: 2015-09-18 | B71: 0.09655482113 | C71: 0.42 | D71: 0.4199929828 | E71: 2015-03-27 | F71: 126 | G71: 0.504 | H71: 118 | I71: 108.56 | J71: 0.00039 | K71: 0.0003
A72: 2015-12-18 | B72: 0.1548025866 | C72: 10.9 | D72: 10.89999127 | E72: 2015-03-27 | F72: 191 | G72: 0.764 | H72: 100 | I72: 108.56 | J72: 0.00039 | K72: 0.0003
A73: 2015-12-18 | B73: 0.07946798478 | C73: 4.42 | D73: 4.419997576 | E73: 2015-03-27 | F73: 191 | G73: 0.764 | H73: 106 | I73: 108.56 | J73: 0.00039 | K73: 0.0003
A74: 2015-12-18 | B74: 0.08146146532 | C74: 2.87 | D74: 2.869999964 | E74: 2015-03-27 | F74: 191 | G74: 0.764 | H74: 109 | I74: 108.56 | J74: 0.00039 | K74: 0.0003
A75: 2015-12-18 | B75: 0.1244436364 | C75: 4.05 | D75: 4.049999756 | E75: 2015-03-27 | F75: 191 | G75: 0.764 | H75: 110 | I75: 108.56 | J75: 0.00039 | K75: 0.0003
A76: 2015-12-18 | B76: 0.08516171766 | C76: 2.18 | D76: 2.17999847 | E76: 2015-03-27 | F76: 191 | G76: 0.764 | H76: 111 | I76: 108.56 | J76: 0.00039 | K76: 0.0003
A77: 2015-12-18 | B77: 0.1180627009 | C77: 3.02 | D77: 3.01999871 | E77: 2015-03-27 | F77: 191 | G77: 0.764 | H77: 112 | I77: 108.56 | J77: 0.00039 | K77: 0.0003
A78: 2015-12-18 | B78: 0.118522444 | C78: 2.86 | D78: 2.859998383 | E78: 2015-03-27 | F78: 191 | G78: 0.764 | H78: 112.5 | I78: 108.56 | J78: 0.00039 | K78: 0.0003
A79: 2015-12-18 | B79: 0.1125353909 | C79: 2.17 | D79: 2.169996221 | E79: 2015-03-27 | F79: 191 | G79: 0.764 | H79: 114 | I79: 108.56 | J79: 0.00039 | K79: 0.0003
A80: 2015-12-18 | B80: 0.1031440276 | C80: 1.59 | D80: 1.589995006 | E80: 2015-03-27 | F80: 191 | G80: 0.764 | H80: 115 | I80: 108.56 | J80: 0.00039 | K80: 0.0003
A81: 2015-12-18 | B81: 0.09461193418 | C81: 1.11 | D81: 1.109994566 | E81: 2015-03-27 | F81: 191 | G81: 0.764 | H81: 116 | I81: 108.56 | J81: 0.00039 | K81: 0.0003
A82: 2015-12-18 | B82: 0.09933015684 | C82: 1.05 | D82: 1.049994329 | E82: 2015-03-27 | F82: 191 | G82: 0.764 | H82: 117 | I82: 108.56 | J82: 0.00039 | K82: 0.0003
A83: 2015-12-18 | B83: 0.08868410792 | C83: 0.63 | D83: 0.6299897898 | E83: 2015-03-27 | F83: 191 | G83: 0.764 | H83: 118 | I83: 108.56 | J83: 0.00039 | K83: 0.0003
A84: 2015-12-18 | B84: 0.09825589515 | C84: 0.71 | D84: 0.7099926508 | E84: 2015-03-27 | F84: 191 | G84: 0.764 | H84: 119 | I84: 108.56 | J84: 0.00039 | K84: 0.0003
A85: 2016-03-18 | B85: 0.1151750953 | C85: 2.45 | D85: 2.449995719 | E85: 2015-03-27 | F85: 256 | G85: 1.024 | H85: 115.5 | I85: 108.56 | J85: 0.00039 | K85: 0.0003
A86: 2015-04-17 | B86: 0.2153972878 | C86: 0.83 | D86: =GarmanKohlhagen("Put", I86, H86, G86, K86, J86, B86) -> 0.8299480674 | E86: 2015-03-27 | F86: 16 | G86: 0.064 | H86: 104.5 | I86: 108.56 | J86: 0.00039 | K86: 0.0003
A87: 2015-04-17 | B87: 0.1826887874 | C87: 0.68 | D87: 0.6798031935 | E87: 2015-03-27 | F87: 16 | G87: 0.064 | H87: 105 | I87: 108.56 | J87: 0.00039 | K87: 0.0003
A88: 2015-04-17 | B88: 0.1609077459 | C88: 0.62 | D88: 0.6199867785 | E88: 2015-03-27 | F88: 16 | G88: 0.064 | H88: 105.5 | I88: 108.56 | J88: 0.00039 | K88: 0.0003
A89: 2015-04-17 | B89: 0.2232934659 | C89: 1.35 | D89: 1.349997953 | E89: 2015-03-27 | F89: 16 | G89: 0.064 | H89: 106 | I89: 108.56 | J89: 0.00039 | K89: 0.0003
A90: 2015-04-17 | B90: 0.2289725912 | C90: 1.59 | D90: 1.589390198 | E90: 2015-03-27 | F90: 16 | G90: 0.064 | H90: 106.5 | I90: 108.56 | J90: 0.00039 | K90: 0.0003
A91: 2015-04-17 | B91: 0.1250131188 | C91: 0.72 | D91: 0.7199484764 | E91: 2015-03-27 | F91: 16 | G91: 0.064 | H91: 107 | I91: 108.56 | J91: 0.00039 | K91: 0.0003
A92: 2015-04-17 | B92: 0.1839407994 | C92: 1.52 | D92: 1.519951721 | E92: 2015-03-27 | F92: 16 | G92: 0.064 | H92: 107.5 | I92: 108.56 | J92: 0.00039 | K92: 0.0003
A93: 2015-04-17 | B93: 0.1022345022 | C93: 0.86 | D93: 0.8597113634 | E93: 2015-03-27 | F93: 16 | G93: 0.064 | H93: 108 | I93: 108.56 | J93: 0.00039 | K93: 0.0003
A94: 2015-04-17 | B94: 0.1140453911 | C94: 1.22 | D94: 1.219654258 | E94: 2015-03-27 | F94: 16 | G94: 0.064 | H94: 108.5 | I94: 108.56 | J94: 0.00039 | K94: 0.0003
A95: 2015-04-17 | B95: 0.04105207086 | C95: 1.07 | D95: 1.069502185 | E95: 2015-03-27 | F95: 16 | G95: 0.064 | H95: 109.5 | I95: 108.56 | J95: 0.00039 | K95: 0.0003
A96: 2015-04-17 | B96: 0.07617232886 | C96: 1.75 | D96: 1.749634965 | E96: 2015-03-27 | F96: 16 | G96: 0.064 | H96: 110 | I96: 108.56 | J96: 0.00039 | K96: 0.0003
A97: 2015-04-17 | B97: 0.1083114654 | C97: 2.41 | D97: 2.409453725 | E97: 2015-03-27 | F97: 16 | G97: 0.064 | H97: 110.5 | I97: 108.56 | J97: 0.00039 | K97: 0.0003
A98: 2015-04-17 | B98: 0.08416460387 | C98: 2.62 | D98: 2.619460773 | E98: 2015-03-27 | F98: 16 | G98: 0.064 | H98: 111 | I98: 108.56 | J98: 0.00039 | K98: 0.0003
A99: 2015-04-17 | B99: 0.4752929356 | C99: 7.5 | D99: 7.499958332 | E99: 2015-03-27 | F99: 16 | G99: 0.064 | H99: 112.5 | I99: 108.56 | J99: 0.00039 | K99: 0.0003
A100: 2015-04-17 | B100: 0.02306778235 | C100: 2.75 | D100: 5.940511245 | E100: 2015-03-27 | F100: 16 | G100: 0.064 | H100: 114.5 | I100: 108.56 | J100: 0.00039 | K100: 0.0003
A101: 2015-04-17 | B101: 0.3076359479 | C101: 7.6 | D101: 7.599303192 | E101: 2015-03-27 | F101: =NETWORKDAYS(E101, A101) -> 16 | G101: =F101/250 -> 0.064 | H101: 115 | I101: 108.56 | J101: 0.00039 | K101: 0.0003
A102: 2015-04-17 | B102: 0.01 | C102: 3.5 | D102: 7.440482445 | E102: 2015-03-27 | F102: 16 | G102: 0.064 | H102: 116 | I102: 108.56 | J102: 0.00039 | K102: 0.0003
A103: 2015-05-15 | B103: 0.1736510296 | C103: 0.35 | D103: 0.3499357831 | E103: 2015-03-27 | F103: 36 | G103: 0.144 | H103: 100 | I103: 108.56 | J103: 0.00039 | K103: 0.0003
A104: 2015-05-15 | B104: 0.1278207857 | C104: 0.24 | D104: 0.2399447225 | E104: 2015-03-27 | F104: 36 | G104: 0.144 | H104: 102 | I104: 108.56 | J104: 0.00039 | K104: 0.0003
A105: 2015-05-15 | B105: 0.1331504239 | C105: 0.34 | D105: 0.3399738285 | E105: 2015-03-27 | F105: 36 | G105: 0.144 | H105: 102.5 | I105: 108.56 | J105: 0.00039 | K105: 0.0003
A106: 2015-05-15 | B106: 0.191108505 | C106: 1.05 | D106: 1.049995874 | E106: 2015-03-27 | F106: 36 | G106: 0.144 | H106: 103 | I106: 108.56 | J106: 0.00039 | K106: 0.0003
A107: 2015-05-15 | B107: 0.1425816795 | C107: 0.7 | D107: 0.6996152714 | E107: 2015-03-27 | F107: 36 | G107: 0.144 | H107: 104 | I107: 108.56 | J107: 0.00039 | K107: 0.0003
A108: 2015-05-15 | B108: 0.1051451314 | C108: 0.48 | D108: 0.4808635323 | E108: 2015-03-27 | F108: 36 | G108: 0.144 | H108: 105 | I108: 108.56 | J108: 0.00039 | K108: 0.0003
A109: 2015-05-15 | B109: 0.182149149 | C109: 1.67 | D109: 1.669967108 | E109: 2015-03-27 | F109: 36 | G109: 0.144 | H109: 105.5 | I109: 108.56 | J109: 0.00039 | K109: 0.0003
A110: 2015-05-15 | B110: 0.1386778701 | C110: 1.2 | D110: 1.199981536 | E110: 2015-03-27 | F110: 36 | G110: 0.144 | H110: 106 | I110: 108.56 | J110: 0.00039 | K110: 0.0003
A111: 2015-05-15 | B111: 0.1879680353 | C111: 2.14 | D111: 2.139314441 | E111: 2015-03-27 | F111: 36 | G111: 0.144 | H111: 106.5 | I111: 108.56 | J111: 0.00039 | K111: 0.0003
A112: 2015-05-15 | B112: 0.1866891461 | C112: 2.33 | D112: 2.329280122 | E112: 2015-03-27 | F112: 36 | G112: 0.144 | H112: 107 | I112: 108.56 | J112: 0.00039 | K112: 0.0003
A113: 2015-05-15 | B113: 0.1889752593 | C113: 2.59 | D113: 2.589285141 | E113: 2015-03-27 | F113: 36 | G113: 0.144 | H113: 107.5 | I113: 108.56 | J113: 0.00039 | K113: 0.0003
A114: 2015-05-15 | B114: 0.1922633856 | C114: 2.88 | D114: 2.879366477 | E114: 2015-03-27 | F114: 36 | G114: 0.144 | H114: 108 | I114: 108.56 | J114: 0.00039 | K114: 0.0003
A115: 2015-05-15 | B115: 0.101992322 | C115: 1.91 | D115: 1.909334094 | E115: 2015-03-27 | F115: 36 | G115: 0.144 | H115: 109 | I115: 108.56 | J115: 0.00039 | K115: 0.0003
A116: 2015-05-15 | B116: 0.1109125068 | C116: 2.34 | D116: 2.339539265 | E116: 2015-03-27 | F116: 36 | G116: 0.144 | H116: 109.5 | I116: 108.56 | J116: 0.00039 | K116: 0.0003
A117: 2015-05-15 | B117: 0.1067368524 | C117: 2.58 | D117: 2.579074025 | E117: 2015-03-27 | F117: 36 | G117: 0.144 | H117: 110 | I117: 108.56 | J117: 0.00039 | K117: 0.0003
A118: 2015-06-19 | B118: 0.1395403621 | C118: 0.41 | D118: =GarmanKohlhagen("Put", I118, H118, G118, K118, J118, B118) -> 0.4099927169 | E118: 2015-03-27 | F118: 61 | G118: 0.244 | H118: 100 | I118: 108.56 | J118: 0.00039 | K118: 0.0003
A119: 2015-06-19 | B119: 0.1584017624 | C119: 0.79 | D119: 0.7894008864 | E119: 2015-03-27 | F119: 61 | G119: 0.244 | H119: 101 | I119: 108.56 | J119: 0.00039 | K119: 0.0003
A120: 2015-06-19 | B120: 0.1747246046 | C120: 1.25 | D120: 1.249350199 | E120: 2015-03-27 | F120: 61 | G120: 0.244 | H120: 102 | I120: 108.56 | J120: 0.00039 | K120: 0.0003
A121: 2015-06-19 | B121: 0.1130502127 | C121: 0.55 | D121: 0.5495335167 | E121: 2015-03-27 | F121: 61 | G121: 0.244 | H121: 103 | I121: 108.56 | J121: 0.00039 | K121: 0.0003
A122: 2015-06-19 | B122: 0.1347485532 | C122: 0.98 | D122: 0.9793498882 | E122: 2015-03-27 | F122: 61 | G122: 0.244 | H122: 103.5 | I122: 108.56 | J122: 0.00039 | K122: 0.0003
A123: 2015-06-19 | B123: 0.1233762604 | C123: 0.92 | D123: 0.9190130694 | E123: 2015-03-27 | F123: 61 | G123: 0.244 | H123: 104 | I123: 108.56 | J123: 0.00039 | K123: 0.0003
A124: 2015-06-19 | B124: 0.1169172553 | C124: 1.08 | D124: 1.079225844 | E124: 2015-03-27 | F124: 61 | G124: 0.244 | H124: 105 | I124: 108.56 | J124: 0.00039 | K124: 0.0003
A125: 2015-06-19 | B125: 0.1649188946 | C125: 2.16 | D125: 2.159999209 | E125: 2015-03-27 | F125: 61 | G125: 0.244 | H125: 105.5 | I125: 108.56 | J125: 0.00039 | K125: 0.0003
A126: 2015-06-19 | B126: 0.2039108957 | C126: 3.15 | D126: 3.1499997 | E126: 2015-03-27 | F126: 61 | G126: 0.244 | H126: 106 | I126: 108.56 | J126: 0.00039 | K126: 0.0003
A127: 2015-06-19 | B127: 0.1595458289 | C127: 2.45 | D127: 2.449999685 | E127: 2015-03-27 | F127: 61 | G127: 0.244 | H127: 106.5 | I127: 108.56 | J127: 0.00039 | K127: 0.0003
A128: 2015-06-19 | B128: 0.174555801 | C128: 2.98 | D128: 2.97915995 | E128: 2015-03-27 | F128: 61 | G128: 0.244 | H128: 107 | I128: 108.56 | J128: 0.00039 | K128: 0.0003
A129: 2015-06-19 | B129: 0.1110157145 | C129: 2.1 | D129: 2.099999957 | E129: 2015-03-27 | F129: 61 | G129: 0.244 | H129: 108 | I129: 108.56 | J129: 0.00039 | K129: 0.0003
A130: 2015-06-19 | B130: 0.1013257557 | C130: 2.4 | D130: 2.39999996 | E130: 2015-03-27 | F130: 61 | G130: 0.244 | H130: 109 | I130: 108.56 | J130: 0.00039 | K130: 0.0003
A131: 2015-06-19 | B131: 0.07992813686 | C131: 2.23 | D131: 2.229197803 | E131: 2015-03-27 | F131: 61 | G131: 0.244 | H131: 109.5 | I131: 108.56 | J131: 0.00039 | K131: 0.0003
A132: 2015-06-19 | B132: 0.09025631437 | C132: 2.75 | D132: 2.749024159 | E132: 2015-03-27 | F132: 61 | G132: 0.244 | H132: 110 | I132: 108.56 | J132: 0.00039 | K132: 0.0003
A133: 2015-06-19 | B133: 0.1114561492 | C133: 3.5 | D133: 3.499999207 | E133: 2015-03-27 | F133: =NETWORKDAYS(E133, A133) -> 61 | G133: =F133/250 -> 0.244 | H133: 110.5 | I133: 108.56 | J133: 0.00039 | K133: 0.0003
A134: 2015-06-19 | B134: 0.1250877748 | C134: 4.1 | D134: 4.09999893 | E134: 2015-03-27 | F134: 61 | G134: 0.244 | H134: 111 | I134: 108.56 | J134: 0.00039 | K134: 0.0003
A135: 2015-06-19 | B135: 0.09466355249 | C135: 3.85 | D135: 3.849998084 | E135: 2015-03-27 | F135: 61 | G135: 0.244 | H135: 111.5 | I135: 108.56 | J135: 0.00039 | K135: 0.0003
A136: 2015-06-19 | B136: 0.09177209803 | C136: 4.17 | D136: 4.169995828 | E136: 2015-03-27 | F136: 61 | G136: 0.244 | H136: 112 | I136: 108.56 | J136: 0.00039 | K136: 0.0003
A137: 2015-06-19 | B137: 0.2095066727 | C137: 6.8 | D137: 6.799999242 | E137: 2015-03-27 | F137: 61 | G137: 0.244 | H137: 112.5 | I137: 108.56 | J137: 0.00039 | K137: 0.0003
A138: 2015-06-19 | B138: 0.01 | C138: 4.22 | D138: 4.442058781 | E138: 2015-03-27 | F138: 61 | G138: 0.244 | H138: 113 | I138: 108.56 | J138: 0.00039 | K138: 0.0003
A139: 2015-06-19 | B139: 0.05198615122 | C139: 4.99 | D139: 4.990004638 | E139: 2015-03-27 | F139: 61 | G139: 0.244 | H139: 113.5 | I139: 108.56 | J139: 0.00039 | K139: 0.0003
A140: 2015-06-19 | B140: 0.2339490747 | C140: 8.3 | D140: 8.299998404 | E140: 2015-03-27 | F140: 61 | G140: 0.244 | H140: 114 | I140: 108.56 | J140: 0.00039 | K140: 0.0003
A141: 2015-06-19 | B141: 0.01 | C141: 3.57 | D141: 5.941948985 | E141: 2015-03-27 | F141: 61 | G141: 0.244 | H141: 114.5 | I141: 108.56 | J141: 0.00039 | K141: 0.0003
A142: 2015-06-19 | B142: 0.2236896456 | C142: 8.8 | D142: 8.799997982 | E142: 2015-03-27 | F142: 61 | G142: 0.244 | H142: 115 | I142: 108.56 | J142: 0.00039 | K142: 0.0003
A143: 2015-06-19 | B143: 0.01 | C143: 4.55 | D143: 6.941875788 | E143: 2015-03-27 | F143: 61 | G143: 0.244 | H143: 115.5 | I143: 108.56 | J143: 0.00039 | K143: 0.0003
A144: 2015-06-19 | B144: 0.2642610428 | C144: 10.3 | D144: 10.29999754 | E144: 2015-03-27 | F144: 61 | G144: 0.244 | H144: 116 | I144: 108.56 | J144: 0.00039 | K144: 0.0003
A145: 2015-06-19 | B145: 0.01 | C145: 5.1 | D145: 7.94180259 | E145: 2015-03-27 | F145: 61 | G145: 0.244 | H145: 116.5 | I145: 108.56 | J145: 0.00039 | K145: 0.0003
A146: 2015-06-19 | B146: 0.2158418708 | C146: 10.15 | D146: 10.149995 | E146: 2015-03-27 | F146: 61 | G146: 0.244 | H146: 117 | I146: 108.56 | J146: 0.00039 | K146: 0.0003
A147: 2015-06-19 | B147: 0.01 | C147: 5.9 | D147: 8.941729393 | E147: 2015-03-27 | F147: 61 | G147: 0.244 | H147: 117.5 | I147: 108.56 | J147: 0.00039 | K147: 0.0003
A148: 2015-06-19 | B148: 0.01 | C148: 8.3 | D148: 9.441692794 | E148: 2015-03-27 | F148: 61 | G148: 0.244 | H148: 118 | I148: 108.56 | J148: 0.00039 | K148: 0.0003
A149: 2015-06-19 | B149: 0.01 | C149: 5.15 | D149: 10.4416196 | E149: 2015-03-27 | F149: 61 | G149: 0.244 | H149: 119 | I149: 108.56 | J149: 0.00039 | K149: 0.0003
A150: 2015-09-18 | B150: 0.121893062 | C150: 0.66 | D150: =GarmanKohlhagen("Put", I150, H150, G150, K150, J150, B150) -> 0.6592239961 | E150: 2015-03-27 | F150: 126 | G150: 0.504 | H150: 99 | I150: 108.56 | J150: 0.00039 | K150: 0.0003
A151: 2015-09-18 | B151: 0.1076655101 | C151: 2.15 | D151: 2.149999385 | E151: 2015-03-27 | F151: 126 | G151: 0.504 | H151: 106 | I151: 108.56 | J151: 0.00039 | K151: 0.0003
A152: 2015-09-18 | B152: 0.1221201901 | C152: 3 | D152: 2.999999824 | E152: 2015-03-27 | F152: 126 | G152: 0.504 | H152: 107 | I152: 108.56 | J152: 0.00039 | K152: 0.0003
A153: 2015-09-18 | B153: 0.1047102893 | C153: 2.94 | D153: 2.93999996 | E153: 2015-03-27 | F153: 126 | G153: 0.504 | H153: 108 | I153: 108.56 | J153: 0.00039 | K153: 0.0003
A154: 2015-09-18 | B154: 0.09358192968 | C154: 3.11 | D154: 3.109999965 | E154: 2015-03-27 | F154: 126 | G154: 0.504 | H154: 109 | I154: 108.56 | J154: 0.00039 | K154: 0.0003
A155: 2015-09-18 | B155: 0.07952207783 | C155: 3.25 | D155: 3.249999229 | E155: 2015-03-27 | F155: 126 | G155: 0.504 | H155: 110 | I155: 108.56 | J155: 0.00039 | K155: 0.0003
A156: 2015-09-18 | B156: 0.08630388346 | C156: 4.08 | D156: 4.079998292 | E156: 2015-03-27 | F156: 126 | G156: 0.504 | H156: 111 | I156: 108.56 | J156: 0.00039 | K156: 0.0003
A157: 2015-09-18 | B157: 0.08595113392 | C157: 4.75 | D157: 4.749995716 | E157: 2015-03-27 | F157: 126 | G157: 0.504 | H157: 112 | I157: 108.56 | J157: 0.00039 | K157: 0.0003
A158: 2015-09-18 | B158: 0.0714516437 | C158: 5.13 | D158: 5.129989862 | E158: 2015-03-27 | F158: 126 | G158: 0.504 | H158: 113 | I158: 108.56 | J158: 0.00039 | K158: 0.0003
A159: 2015-09-18 | B159: 0.01 | C159: 3.6 | D159: 5.44410096 | E159: 2015-03-27 | F159: 126 | G159: 0.504 | H159: 114 | I159: 108.56 | J159: 0.00039 | K159: 0.0003
A160: 2015-09-18 | B160: 0.1646061191 | C160: 9.05 | D160: 9.049995539 | E160: 2015-03-27 | F160: 126 | G160: 0.504 | H160: 115 | I160: 108.56 | J160: 0.00039 | K160: 0.0003
A161: 2015-09-18 | B161: 0.01 | C161: 7.4 | D161: 7.443798582 | E161: 2015-03-27 | F161: 126 | G161: 0.504 | H161: 116 | I161: 108.56 | J161: 0.00039 | K161: 0.0003
A162: 2015-09-18 | B162: 0.01 | C162: 5.7 | D162: 8.443647394 | E162: 2015-03-27 | F162: 126 | G162: 0.504 | H162: 117 | I162: 108.56 | J162: 0.00039 | K162: 0.0003
A163: 2015-09-18 | B163: 0.01 | C163: 2.99 | D163: 9.443496205 | E163: 2015-03-27 | F163: 126 | G163: 0.504 | H163: 118 | I163: 108.56 | J163: 0.00039 | K163: 0.0003
A164: 2015-09-18 | B164: 0.01 | C164: 6.15 | D164: 10.44334502 | E164: 2015-03-27 | F164: 126 | G164: 0.504 | H164: 119 | I164: 108.56 | J164: 0.00039 | K164: 0.0003
A165: 2015-12-18 | B165: 0.1333091167 | C165: 1.72 | D165: 1.719995396 | E165: 2015-03-27 | F165: =NETWORKDAYS(E165, A165) -> 191 | G165: =F165/250 -> 0.764 | H165: 100 | I165: 108.56 | J165: 0.00039 | K165: 0.0003
A166: 2015-12-18 | B166: 0.1384842744 | C166: 2.15 | D166: 2.149996077 | E166: 2015-03-27 | F166: 191 | G166: 0.764 | H166: 101 | I166: 108.56 | J166: 0.00039 | K166: 0.0003
A167: 2015-12-18 | B167: 0.111445281 | C167: 1.62 | D167: 1.619996348 | E167: 2015-03-27 | F167: 191 | G167: 0.764 | H167: 102 | I167: 108.56 | J167: 0.00039 | K167: 0.0003
A168: 2015-12-18 | B168: 0.1482759724 | C168: 3.13 | D168: 3.129997713 | E168: 2015-03-27 | F168: 191 | G168: 0.764 | H168: 103 | I168: 108.56 | J168: 0.00039 | K168: 0.0003
A169: 2015-12-18 | B169: 0.1068341949 | C169: 2.09 | D169: 2.089997416 | E169: 2015-03-27 | F169: 191 | G169: 0.764 | H169: 104 | I169: 108.56 | J169: 0.00039 | K169: 0.0003
A170: 2015-12-18 | B170: 0.1057127744 | C170: 2.41 | D170: 2.409998573 | E170: 2015-03-27 | F170: 191 | G170: 0.764 | H170: 105 | I170: 108.56 | J170: 0.00039 | K170: 0.0003
A171: 2015-12-18 | B171: 0.1069185878 | C171: 2.85 | D171: 2.849999166 | E171: 2015-03-27 | F171: 191 | G171: 0.764 | H171: 106 | I171: 108.56 | J171: 0.00039 | K171: 0.0003
A172: 2015-12-18 | B172: 0.1527585488 | C172: 5.49 | D172: 5.490000061 | E172: 2015-03-27 | F172: 191 | G172: 0.764 | H172: 108 | I172: 108.56 | J172: 0.00039 | K172: 0.0003
A173: 2015-12-18 | B173: 0.1364990047 | C173: 5.4 | D173: 5.400000049 | E173: 2015-03-27 | F173: 191 | G173: 0.764 | H173: 109 | I173: 108.56 | J173: 0.00039 | K173: 0.0003
A174: 2015-12-18 | B174: 0.1385480793 | C174: 6.03 | D174: 6.029999834 | E174: 2015-03-27 | F174: 191 | G174: 0.764 | H174: 110 | I174: 108.56 | J174: 0.00039 | K174: 0.0003
A175: 2015-12-18 | B175: 0.1061224045 | C175: 5.4 | D175: 5.399998823 | E175: 2015-03-27 | F175: 191 | G175: 0.764 | H175: 111 | I175: 108.56 | J175: 0.00039 | K175: 0.0003
A176: 2015-12-18 | B176: 0.09219407087 | C176: 5.53 | D176: 5.529996526 | E176: 2015-03-27 | F176: 191 | G176: 0.764 | H176: 112 | I176: 108.56 | J176: 0.00039 | K176: 0.0003
A177: 2015-12-18 | B177: 0.07976814028 | C177: 5.8 | D177: 5.799992301 | E177: 2015-03-27 | F177: 191 | G177: 0.764 | H177: 113 | I177: 108.56 | J177: 0.00039 | K177: 0.0003
A178: 2015-12-18 | B178: 0.08369933173 | C178: 6.67 | D178: 6.66998916 | E178: 2015-03-27 | F178: 191 | G178: 0.764 | H178: 114 | I178: 108.56 | J178: 0.00039 | K178: 0.0003
A179: 2015-12-18 | B179: 0.00759835547 | C179: 5.08 | D179: 6.445986739 | E179: 2015-03-27 | F179: 191 | G179: 0.764 | H179: 115 | I179: 108.56 | J179: 0.00039 | K179: 0.0003
A180: 2015-12-18 | B180: 0.01 | C180: 6.1 | D180: 8.445528392 | E180: 2015-03-27 | F180: 191 | G180: 0.764 | H180: 117 | I180: 108.56 | J180: 0.00039 | K180: 0.0003
A181: 2015-12-18 | B181: 0.01008489181 | C181: 5.55 | D181: 9.445299218 | E181: 2015-03-27 | F181: 191 | G181: 0.764 | H181: 118 | I181: 108.56 | J181: 0.00039 | K181: 0.0003
A182: 2015-12-18 | B182: 0.01084780953 | C182: 6.21 | D182: =GarmanKohlhagen("Put", I182, H182, G182, K182, J182, B182) -> 10.44507004 | E182: 2015-03-27 | F182: 191 | G182: 0.764 | H182: 119 | I182: 108.56 | J182: 0.00039 | K182: 0.0003
A183: 2016-03-18 | B183: 0.1175644696 | C183: 1.8 | D183: 1.799993868 | E183: 2015-03-27 | F183: 256 | G183: 1.024 | H183: 100 | I183: 108.56 | J183: 0.00039 | K183: 0.0003
A184: 2016-03-18 | B184: 0.1033511171 | C184: 2.9 | D184: 2.899998196 | E184: 2015-03-27 | F184: 256 | G184: 1.024 | H184: 105 | I184: 108.56 | J184: 0.00039 | K184: 0.0003
A185: 2016-03-18 | B185: 0.093913441 | C185: 4.35 | D185: 4.35000001 | E185: 2015-03-27 | F185: 256 | G185: 1.024 | H185: 109 | I185: 108.56 | J185: 0.00039 | K185: 0.0003
A186: 2016-03-18 | B186: 0.08371338805 | C186: 5.7 | D186: 5.69999605 | E186: 2015-03-27 | F186: 256 | G186: 1.024 | H186: 112 | I186: 108.56 | J186: 0.00039 | K186: 0.0003
A187: 2016-03-18 | B187: 0.08047935768 | C187: 6.25 | D187: 6.249992784 | E187: 2015-03-27 | F187: 256 | G187: 1.024 | H187: 113 | I187: 108.56 | J187: 0.00039 | K187: 0.0003
A188: 2016-03-18 | B188: 0.07797014582 | C188: 6.51 | D188: 6.509990631 | E188: 2015-03-27 | F188: 256 | G188: 1.024 | H188: 113.5 | I188: 108.56 | J188: 0.00039 | K188: 0.0003
A189: 2016-03-18 | B189: 0.07471906151 | C189: 7.14 | D189: 7.139985408 | E189: 2015-03-27 | F189: 256 | G189: 1.024 | H189: 114.5 | I189: 108.56 | J189: 0.00039 | K189: 0.0003
A190: 2016-03-18 | B190: 0.06675538975 | C190: 8.1 | D190: 8.099977858 | E190: 2015-03-27 | F190: 256 | G190: 1.024 | H190: 116 | I190: 108.56 | J190: 0.00039 | K190: 0.0003

Sheet VaR
B1: Value at Risk
B2: Log-normal distribution formula
B4: Implied volatility | C4: Spot rate | D4: The first day of observation | E4: The last day of observation | F4: Exposure time /year | G4: Confidence level | H4: z-score | I4: Expected Maximumn Rate | J4: Expected Minimum Rate | M4: Expected Maximumn Rate | N4: Expected Minimum Rate
B5: 0.06387626955 | C5: 1.0856 | D5: 2015-03-27 | E5: 2015-04-27 | F5: =(NETWORKDAYS(D5,E5))/250 -> 0.088 | G5: 0.95 | H5: =NORMSINV(G5) -> 1.644853627 | I5: =EXP(H5*B5*SQRT(F5))*C5 -> 1.119968738 | J5: =EXP(-H5*B5*SQRT(F5))*C5 -> 1.052285943 | L5: Max | M5: =MAX(I5:I167) -> 1.368956025 | N5: =MAX(J5:J167) -> 1.064070642
B6: 0.04495100961 | C6: 1.0856 | D6: 2015-03-27 | E6: 2015-04-27 | F6: 0.088 | G6: 0.95 | H6: 1.644853627 | I6: 1.109674062 | J6: 1.062048217 | L6: Min | M6: =MIN(I6:I168) -> 1.107564961 | N6: =MIN(J6:J168) -> 0.8608949728
B7: 0.1788106004 | C7: 1.0856 | D7: 2015-03-27 | E7: 2015-04-27 | F7: 0.088 | G7: 0.95 | H7: 1.644853627 | I7: 1.18457269 | J7: 0.9948966158 | L7: Mode | M7: =MODE(I7:I169) -> 1.172855919 | N7: =MODE(J7:J169) -> 1.004835582
B8: 0.08114144581 | C8: 1.0856 | D8: 2015-03-27 | E8: 2015-04-27 | F8: 0.088 | G8: 0.95 | H8: 1.644853627 | I8: 1.129443671 | J8: 1.043458289
B9: 0.08194041982 | C9: 1.0856 | D9: 2015-03-27 | E9: 2015-04-27 | F9: 0.088 | G9: 0.95 | H9: 1.644853627 | I9: 1.129884074 | J9: 1.043051573
B10: 0.1743845721 | C10: 1.0856 | D10: 2015-03-27 | E10: 2015-04-27 | F10: 0.088 | G10: 0.95 | H10: 1.644853627 | I10: 1.182017191 | J10: 0.9970475631
B11: 0.1480023811 | C11: 1.0856 | D11: 2015-03-27 | E11: 2015-04-27 | F11: 0.088 | G11: 0.95 | H11: 1.644853627 | I11: 1.166898614 | J11: 1.009965515
B12: 0.09266981074 | C12: 1.0856 | D12: 2015-03-27 | E12: 2015-04-27 | F12: 0.088 | G12: 0.95 | H12: 1.644853627 | I12: 1.135814896 | J12: 1.037605128
B13: 0.1580043667 | C13: 1.0856 | D13: 2015-03-27 | E13: 2015-04-27 | F13: 0.088 | G13: 0.95 | H13: 1.644853627 | I13: 1.172607458 | J13: 1.005048494
B14: 0.1556051495 | C14: 1.0856 | D14: 2015-03-27 | E14: 2015-04-27 | F14: 0.088 | G14: 0.95 | H14: 1.644853627 | I14: 1.171235513 | J14: 1.006225773
B15: 0.1584385681 | C15: 1.0856 | D15: 2015-03-27 | E15: 2015-04-27 | F15: 0.088 | G15: 0.95 | H15: 1.644853627 | I15: 1.172855919 | J15: 1.004835582
B16: 0.2132387851 | C16: 1.0856 | D16: 2015-03-27 | E16: 2015-04-27 | F16: 0.088 | G16: 0.95 | H16: 1.644853627 | I16: 1.20464038 | J16: 0.9783229748
B17: 0.1584385681 | C17: 1.0856 | D17: 2015-03-27 | E17: 2015-04-27 | F17: 0.088 | G17: 0.95 | H17: 1.644853627 | I17: 1.172855919 | J17: 1.004835582
B18: 0.2133306412 | C18: 1.0856 | D18: 2015-03-27 | E18: 2015-04-27 | F18: 0.088 | G18: 0.95 | H18: 1.644853627 | I18: 1.204694374 | J18: 0.9782791269
B19: 0.1907116727 | C19: 1.0856 | D19: 2015-03-27 | E19: 2015-04-27 | F19: 0.088 | G19: 0.95 | H19: 1.644853627 | I19: 1.19147156 | J19: 0.9891359554
B20: 0.3700266431 | C20: 1.0856 | D20: 2015-03-27 | E20: 2015-04-27 | F20: 0.088 | G20: 0.95 | H20: 1.644853627 | I20: 1.300416415 | J20: 0.9062692123
B21: 0.360633035 | C21: 1.0856 | D21: 2015-03-27 | E21: 2015-04-27 | F21: 0.088 | G21: 0.95 | H21: 1.644853627 | I21: 1.294469543 | J21: 0.9104326679
B22: 0.3519529924 | C22: 1.0856 | D22: 2015-03-27 | E22: 2015-04-27 | F22: 0.088 | G22: 0.95 | H22: 1.644853627 | I22: 1.288998591 | J22: 0.9142968564
B23: 0.1325460528 | C23: 1.0856 | D23: 2015-03-27 | E23: 2015-04-27 | F23: 0.088 | G23: 0.95 | H23: 1.644853627 | I23: 1.158131203 | J23: 1.017611267
B24: 0.1485 | C24: 1.0856 | D24: 2015-03-27 | E24: 2015-04-27 | F24: 0.088 | G24: 0.95 | H24: 1.644853627 | I24: 1.167181983 | J24: 1.009720316
B25: 0.1663021789 | C25: 1.0856 | D25: 2015-03-27 | E25: 2015-04-27 | F25: 0.088 | G25: 0.95 | H25: 1.644853627 | I25: 1.177364799 | J25: 1.000987426
B26: 0.1271900721 | C26: 1.0856 | D26: 2015-03-27 | E26: 2015-04-27 | F26: 0.088 | G26: 0.95 | H26: 1.644853627 | I26: 1.155108482 | J26: 1.02027418
B27: 0.06703101085 | C27: 1.0856 | D27: 2015-03-27 | E27: 2015-04-27 | F27: 0.088 | G27: 0.95 | H27: 1.644853627 | I27: 1.121694069 | J27: 1.050667372
B28: 0.152176904 | C28: 1.0856 | D28: 2015-03-27 | E28: 2015-04-27 | F28: 0.088 | G28: 0.95 | H28: 1.644853627 | I28: 1.169277924 | J28: 1.007910383
B29: 0.1541388499 | C29: 1.0856 | D29: 2015-03-27 | E29: 2015-04-27 | F29: 0.088 | G29: 0.95 | H29: 1.644853627 | I29: 1.170397829 | J29: 1.006945955
B30: 0.1018057175 | C30: 1.0856 | D30: 2015-03-27 | E30: 2015-04-27 | F30: 0.088 | G30: 0.95 | H30: 1.644853627 | I30: 1.14088943 | J30: 1.03298999
B31: 0.1077675468 | C31: 1.0856 | D31: 2015-03-27 | E31: 2015-04-27 | F31: 0.088 | G31: 0.95 | H31: 1.644853627 | I31: 1.144213143 | J31: 1.029989358
B32: 0.1953863182 | C32: 1.0856 | D32: 2015-03-27 | E32: 2015-04-27 | F32: 0.088 | G32: 0.95 | H32: 1.644853627 | I32: 1.194192358 | J32: 0.9868823491
B33: 0.08746371773 | C33: 1.0856 | D33: 2015-03-27 | E33: 2015-04-27 | F33: 0.088 | G33: 0.95 | H33: 1.644853627 | I33: 1.132933276 | J33: 1.04024428
B34: 0.1968248146 | C34: 1.0856 | D34: 2015-03-27 | E34: 2015-04-27 | F34: 0.088 | G34: 0.95 | H34: 1.644853627 | I34: 1.19503086 | J34: 0.9861898961
B35: 0.1079266465 | C35: 1.0856 | D35: 2015-03-27 | E35: 2015-04-27 | F35: 0.088 | G35: 0.95 | H35: 1.644853627 | I35: 1.144301973 | J35: 1.029909401
B36: 0.1330448376 | C36: 1.0856 | D36: 2015-03-27 | E36: 2015-04-27 | F36: 0.088 | G36: 0.95 | H36: 1.644853627 | I36: 1.158413101 | J36: 1.017363632
B37: 0.1564209668 | C37: 1.0856 | D37: 2015-03-27 | E37: 2015-04-27 | F37: =(NETWORKDAYS(D37,E37))/250 -> 0.088 | G37: 0.95 | H37: =NORMSINV(G37) -> 1.644853627 | I37: =EXP(H37*B37*SQRT(F37))*C37 -> 1.171701842 | J37: =EXP(-H37*B37*SQRT(F37))*C37 -> 1.005825303
B38: 0.1281838667 | C38: 1.0856 | D38: 2015-03-27 | E38: 2015-04-27 | F38: 0.088 | G38: 0.95 | H38: 1.644853627 | I38: 1.155668747 | J38: 1.019779555
B39: 0.1470135161 | C39: 1.0856 | D39: 2015-03-27 | E39: 2015-04-27 | F39: 0.088 | G39: 0.95 | H39: 1.644853627 | I39: 1.166335711 | J39: 1.01045295
B40: 0.04479523931 | C40: 1.0856 | D40: 2015-03-27 | E40: 2015-04-27 | F40: 0.088 | G40: 0.95 | H40: 1.644853627 | I40: 1.109589723 | J40: 1.062128944
B41: 0.1185511581 | C41: 1.0856 | D41: 2015-03-27 | E41: 2015-04-27 | F41: 0.088 | G41: 0.95 | H41: 1.644853627 | I41: 1.15024961 | J41: 1.024584012
B42: 0.1501194901 | C42: 1.0856 | D42: 2015-03-27 | E42: 2015-04-27 | F42: 0.088 | G42: 0.95 | H42: 1.644853627 | I42: 1.168104675 | J42: 1.008922732
B43: 0.1239150568 | C43: 1.0856 | D43: 2015-03-27 | E43: 2015-04-27 | F43: 0.088 | G43: 0.95 | H43: 1.644853627 | I43: 1.153264071 | J43: 1.021905901
B44: 0.08288258527 | C44: 1.0856 | D44: 2015-03-27 | E44: 2015-04-27 | F44: 0.088 | G44: 0.95 | H44: 1.644853627 | I44: 1.130403626 | J44: 1.042572169
B45: 0.08369195163 | C45: 1.0856 | D45: 2015-03-27 | E45: 2015-04-27 | F45: 0.088 | G45: 0.95 | H45: 1.644853627 | I45: 1.130850138 | J45: 1.042160513
B46: 0.08442861346 | C46: 1.0856 | D46: 2015-03-27 | E46: 2015-04-27 | F46: 0.088 | G46: 0.95 | H46: 1.644853627 | I46: 1.131256694 | J46: 1.041785977
B47: 0.1283140369 | C47: 1.0856 | D47: 2015-03-27 | E47: 2015-04-27 | F47: 0.088 | G47: 0.95 | H47: 1.644853627 | I47: 1.155742152 | J47: 1.019714785
B48: 0.1183122201 | C48: 1.0856 | D48: 2015-03-27 | E48: 2015-04-27 | F48: 0.088 | G48: 0.95 | H48: 1.644853627 | I48: 1.150115512 | J48: 1.024703473
B49: 0.1336300011 | C49: 1.0856 | D49: 2015-03-27 | E49: 2015-04-27 | F49: 0.088 | G49: 0.95 | H49: 1.644853627 | I49: 1.158743905 | J49: 1.01707319
B50: 0.08756042053 | C50: 1.0856 | D50: 2015-03-27 | E50: 2015-04-27 | F50: 0.088 | G50: 0.95 | H50: 1.644853627 | I50: 1.132986736 | J50: 1.040195196
B51: 0.2174401202 | C51: 1.0856 | D51: 2015-03-27 | E51: 2015-04-27 | F51: 0.088 | G51: 0.95 | H51: 1.644853627 | I51: 1.207112437 | J51: 0.9763194575
B52: 0.1132099739 | C52: 1.0856 | D52: 2015-03-27 | E52: 2015-04-27 | F52: 0.088 | G52: 0.95 | H52: 1.644853627 | I52: 1.147255743 | J52: 1.027257756
B53: 0.1073599969 | C53: 1.0856 | D53: 2015-03-27 | E53: 2015-04-27 | F53: 0.088 | G53: 0.95 | H53: 1.644853627 | I53: 1.143985626 | J53: 1.030194203
B54: 0.1031614671 | C54: 1.0856 | D54: 2015-03-27 | E54: 2015-04-27 | F54: 0.088 | G54: 0.95 | H54: 1.644853627 | I54: 1.141644409 | J54: 1.032306864
B55: 0.2760495516 | C55: 1.0856 | D55: 2015-03-27 | E55: 2015-04-27 | F55: 0.088 | G55: 0.95 | H55: 1.644853627 | I55: 1.24213183 | J55: 0.9487941068
B56: 0.104938142 | C56: 1.0856 | D56: 2015-03-27 | E56: 2015-04-27 | F56: 0.088 | G56: 0.95 | H56: 1.644853627 | I56: 1.142634547 | J56: 1.031412329
B57: 0.2823257335 | C57: 1.0856 | D57: 2015-03-27 | E57: 2015-04-27 | F57: 0.088 | G57: 0.95 | H57: 1.644853627 | I57: 1.245941584 | J57: 0.9458929495
B58: 0.2091335089 | C58: 1.0856 | D58: 2015-03-27 | E58: 2015-04-27 | F58: 0.088 | G58: 0.95 | H58: 1.644853627 | I58: 1.202229734 | J58: 0.9802846553
B59: 0.07038285944 | C59: 1.0856 | D59: 2015-03-27 | E59: 2015-04-27 | F59: 0.088 | G59: 0.95 | H59: 1.644853627 | I59: 1.123530111 | J59: 1.0489504
B60: 0.09371104077 | C60: 1.0856 | D60: 2015-03-27 | E60: 2015-04-27 | F60: 0.088 | G60: 0.95 | H60: 1.644853627 | I60: 1.136392105 | J60: 1.037078096
B61: 0.1199634868 | C61: 1.0856 | D61: 2015-03-27 | E61: 2015-04-27 | F61: 0.088 | G61: 0.95 | H61: 1.644853627 | I61: 1.15104256 | J61: 1.023878178
B62: 0.1164562766 | C62: 1.0856 | D62: 2015-03-27 | E62: 2015-04-27 | F62: 0.088 | G62: 0.95 | H62: 1.644853627 | I62: 1.149074446 | J62: 1.025631858
B63: 0.1145889235 | C63: 1.0856 | D63: 2015-03-27 | E63: 2015-04-27 | F63: 0.088 | G63: 0.95 | H63: 1.644853627 | I63: 1.148027932 | J63: 1.0265668
B64: 0.1114411842 | C64: 1.0856 | D64: 2015-03-27 | E64: 2015-04-27 | F64: 0.088 | G64: 0.95 | H64: 1.644853627 | I64: 1.146266011 | J64: 1.028144731
B65: 0.1129449372 | C65: 1.0856 | D65: 2015-03-27 | E65: 2015-04-27 | F65: 0.088 | G65: 0.95 | H65: 1.644853627 | I65: 1.147107387 | J65: 1.027390612
B66: 0.09662114566 | C66: 1.0856 | D66: 2015-03-27 | E66: 2015-04-27 | F66: 0.088 | G66: 0.95 | H66: 1.644853627 | I66: 1.138006886 | J66: 1.035606528
B67: 0.154981289 | C67: 1.0856 | D67: 2015-03-27 | E67: 2015-04-27 | F67: 0.088 | G67: 0.95 | H67: 1.644853627 | I67: 1.170879034 | J67: 1.006532123
B68: 0.07961121912 | C68: 1.0856 | D68: 2015-03-27 | E68: 2015-04-27 | F68: 0.088 | G68: 0.95 | H68: 1.644853627 | I68: 1.128600672 | J68: 1.044237691
B69: 0.08156428413 | C69: 1.0856 | D69: 2015-03-27 | E69: 2015-04-27 | F69: =(NETWORKDAYS(D69,E69))/250 -> 0.088 | G69: 0.95 | H69: =NORMSINV(G69) -> 1.644853627 | I69: =EXP(H69*B69*SQRT(F69))*C69 -> 1.129676722 | J69: =EXP(-H69*B69*SQRT(F69))*C69 -> 1.043243024
B70: 0.1245624984 | C70: 1.0856 | D70: 2015-03-27 | E70: 2015-04-27 | F70: 0.088 | G70: 0.95 | H70: 1.644853627 | I70: 1.153628461 | J70: 1.021583118
B71: 0.08526915355 | C71: 1.0856 | D71: 2015-03-27 | E71: 2015-04-27 | F71: 0.088 | G71: 0.95 | H71: 1.644853627 | I71: 1.131720757 | J71: 1.041358792
B72: 0.1181469312 | C72: 1.0856 | D72: 2015-03-27 | E72: 2015-04-27 | F72: 0.088 | G72: 0.95 | H72: 1.644853627 | I72: 1.150022758 | J72: 1.02478612
B73: 0.1186041574 | C73: 1.0856 | D73: 2015-03-27 | E73: 2015-04-27 | F73: 0.088 | G73: 0.95 | H73: 1.644853627 | I73: 1.150279356 | J73: 1.024557516
B74: 0.112633111 | C74: 1.0856 | D74: 2015-03-27 | E74: 2015-04-27 | F74: 0.088 | G74: 0.95 | H74: 1.644853627 | I74: 1.146932864 | J74: 1.027546945
B75: 0.1032274285 | C75: 1.0856 | D75: 2015-03-27 | E75: 2015-04-27 | F75: 0.088 | G75: 0.95 | H75: 1.644853627 | I75: 1.141681154 | J75: 1.032273639
B76: 0.0946754993 | C76: 1.0856 | D76: 2015-03-27 | E76: 2015-04-27 | F76: 0.088 | G76: 0.95 | H76: 1.644853627 | I76: 1.136927017 | J76: 1.036590161
B77: 0.09938975166 | C77: 1.0856 | D77: 2015-03-27 | E77: 2015-04-27 | F77: 0.088 | G77: 0.95 | H77: 1.644853627 | I77: 1.139545282 | J77: 1.03420845
B78: 0.08877226899 | C78: 1.0856 | D78: 2015-03-27 | E78: 2015-04-27 | F78: 0.088 | G78: 0.95 | H78: 1.644853627 | I78: 1.133656883 | J78: 1.039580298
B79: 0.09831691537 | C79: 1.0856 | D79: 2015-03-27 | E79: 2015-04-27 | F79: 0.088 | G79: 0.95 | H79: 1.644853627 | I79: 1.138948906 | J79: 1.034749982
B80: 0.1152585213 | C80: 1.0856 | D80: 2015-03-27 | E80: 2015-04-27 | F80: 0.088 | G80: 0.95 | H80: 1.644853627 | I80: 1.148403083 | J80: 1.026231449
B81: 0.2153972878 | C81: 1.0856 | D81: 2015-03-27 | E81: 2015-04-27 | F81: 0.088 | G81: 0.95 | H81: 1.644853627 | I81: 1.205909806 | J81: 0.9772931229
B82: 0.1826887874 | C82: 1.0856 | D82: 2015-03-27 | E82: 2015-04-27 | F82: 0.088 | G82: 0.95 | H82: 1.644853627 | I82: 1.186816417 | J82: 0.9930157212
B83: 0.1609077459 | C83: 1.0856 | D83: 2015-03-27 | E83: 2015-04-27 | F83: 0.088 | G83: 0.95 | H83: 1.644853627 | I83: 1.174269847 | J83: 1.003625668
B84: 0.2232934659 | C84: 1.0856 | D84: 2015-03-27 | E84: 2015-04-27 | F84: 0.088 | G84: 0.95 | H84: 1.644853627 | I84: 1.210564994 | J84: 0.9735349739
B85: 0.2289725912 | C85: 1.0856 | D85: 2015-03-27 | E85: 2015-04-27 | F85: 0.088 | G85: 0.95 | H85: 1.644853627 | I85: 1.213924226 | J85: 0.9708409589
B86: 0.1250131188 | C86: 1.0856 | D86: 2015-03-27 | E86: 2015-04-27 | F86: 0.088 | G86: 0.95 | H86: 1.644853627 | I86: 1.153882145 | J86: 1.02135852
B87: 0.1839407994 | C87: 1.0856 | D87: 2015-03-27 | E87: 2015-04-27 | F87: 0.088 | G87: 0.95 | H87: 1.644853627 | I87: 1.187541676 | J87: 0.9924092635
B88: 0.1022345022 | C88: 1.0856 | D88: 2015-03-27 | E88: 2015-04-27 | F88: 0.088 | G88: 0.95 | H88: 1.644853627 | I88: 1.141128154 | J88: 1.032773888
B89: 0.1140453911 | C89: 1.0856 | D89: 2015-03-27 | E89: 2015-04-27 | F89: 0.088 | G89: 0.95 | H89: 1.644853627 | I89: 1.147723501 | J89: 1.026839094
B90: 0.04105207086 | C90: 1.0856 | D90: 2015-03-27 | E90: 2015-04-27 | F90: 0.088 | G90: 0.95 | H90: 1.644853627 | I90: 1.107564961 | J90: 1.064070642
B91: 0.07617232886 | C91: 1.0856 | D91: 2015-03-27 | E91: 2015-04-27 | F91: 0.088 | G91: 0.95 | H91: 1.644853627 | I91: 1.12670849 | J91: 1.045991373
B92: 0.1083114654 | C92: 1.0856 | D92: 2015-03-27 | E92: 2015-04-27 | F92: 0.088 | G92: 0.95 | H92: 1.644853627 | I92: 1.144516858 | J92: 1.029716034
B93: 0.08416460387 | C93: 1.0856 | D93: 2015-03-27 | E93: 2015-04-27 | F93: 0.088 | G93: 0.95 | H93: 1.644853627 | I93: 1.131110973 | J93: 1.04192019
B94: 0.4752929356 | C94: 1.0856 | D94: 2015-03-27 | E94: 2015-04-27 | F94: 0.088 | G94: 0.95 | H94: 1.644853627 | I94: 1.368956025 | J94: 0.8608949728
B95: 0.3076359479 | C95: 1.0856 | D95: 2015-03-27 | E95: 2015-04-27 | F95: 0.088 | G95: 0.95 | H95: 1.644853627 | I95: 1.261424281 | J95: 0.934283078
B96: 0.1736510296 | C96: 1.0856 | D96: 2015-03-27 | E96: 2015-04-27 | F96: 0.088 | G96: 0.95 | H96: 1.644853627 | I96: 1.181594192 | J96: 0.9974044968
B97: 0.1278207857 | C97: 1.0856 | D97: 2015-03-27 | E97: 2015-04-27 | F97: 0.088 | G97: 0.95 | H97: 1.644853627 | I97: 1.155464024 | J97: 1.019960237
B98: 0.1331504239 | C98: 1.0856 | D98: 2015-03-27 | E98: 2015-04-27 | F98: 0.088 | G98: 0.95 | H98: 1.644853627 | I98: 1.158472784 | J98: 1.017311219
B99: 0.191108505 | C99: 1.0856 | D99: 2015-03-27 | E99: 2015-04-27 | F99: 0.088 | G99: 0.95 | H99: 1.644853627 | I99: 1.191702289 | J99: 0.9889444463
B100: 0.1425816795 | C100: 1.0856 | D100: 2015-03-27 | E100: 2015-04-27 | F100: 0.088 | G100: 0.95 | H100: 1.644853627 | I100: 1.163816257 | J100: 1.0126404
B101: 0.1051451314 | C101: 1.0856 | D101: 2015-03-27 | E101: 2015-04-27 | F101: =(NETWORKDAYS(D101,E101))/250 -> 0.088 | G101: 0.95 | H101: =NORMSINV(G101) -> 1.644853627 | I101: =EXP(H101*B101*SQRT(F101))*C101 -> 1.142749958 | J101: =EXP(-H101*B101*SQRT(F101))*C101 -> 1.031308163
B102: 0.182149149 | C102: 1.0856 | D102: 2015-03-27 | E102: 2015-04-27 | F102: 0.088 | G102: 0.95 | H102: 1.644853627 | I102: 1.186503954 | J102: 0.9932772291
B103: 0.1386778701 | C103: 1.0856 | D103: 2015-03-27 | E103: 2015-04-27 | F103: 0.088 | G103: 0.95 | H103: 1.644853627 | I103: 1.16160149 | J103: 1.01457115
B104: 0.1879680353 | C104: 1.0856 | D104: 2015-03-27 | E104: 2015-04-27 | F104: 0.088 | G104: 0.95 | H104: 1.644853627 | I104: 1.18987756 | J104: 0.9904610352
B105: 0.1866891461 | C105: 1.0856 | D105: 2015-03-27 | E105: 2015-04-27 | F105: 0.088 | G105: 0.95 | H105: 1.644853627 | I105: 1.189135279 | J105: 0.9910792999
B106: 0.1889752593 | C106: 1.0856 | D106: 2015-03-27 | E106: 2015-04-27 | F106: 0.088 | G106: 0.95 | H106: 1.644853627 | I106: 1.19046249 | J106: 0.9899743756
B107: 0.1922633856 | C107: 1.0856 | D107: 2015-03-27 | E107: 2015-04-27 | F107: 0.088 | G107: 0.95 | H107: 1.644853627 | I107: 1.19237402 | J107: 0.988387318
B108: 0.101992322 | C108: 1.0856 | D108: 2015-03-27 | E108: 2015-04-27 | F108: 0.088 | G108: 0.95 | H108: 1.644853627 | I108: 1.140993315 | J108: 1.032895938
B109: 0.1109125068 | C109: 1.0856 | D109: 2015-03-27 | E109: 2015-04-27 | F109: 0.088 | G109: 0.95 | H109: 1.644853627 | I109: 1.145970354 | J109: 1.02840999
B110: 0.1067368524 | C110: 1.0856 | D110: 2015-03-27 | E110: 2015-04-27 | F110: 0.088 | G110: 0.95 | H110: 1.644853627 | I110: 1.14363784 | J110: 1.03050749
B111: 0.1395403621 | C111: 1.0856 | D111: 2015-03-27 | E111: 2015-04-27 | F111: 0.088 | G111: 0.95 | H111: 1.644853627 | I111: 1.162090449 | J111: 1.014144262
B112: 0.1584017624 | C112: 1.0856 | D112: 2015-03-27 | E112: 2015-04-27 | F112: 0.088 | G112: 0.95 | H112: 1.644853627 | I112: 1.172834856 | J112: 1.004853628
B113: 0.1747246046 | C113: 1.0856 | D113: 2015-03-27 | E113: 2015-04-27 | F113: 0.088 | G113: 0.95 | H113: 1.644853627 | I113: 1.182213323 | J113: 0.9968821504
B114: 0.1130502127 | C114: 1.0856 | D114: 2015-03-27 | E114: 2015-04-27 | F114: 0.088 | G114: 0.95 | H114: 1.644853627 | I114: 1.147166313 | J114: 1.027337838
B115: 0.1347485532 | C115: 1.0856 | D115: 2015-03-27 | E115: 2015-04-27 | F115: 0.088 | G115: 0.95 | H115: 1.644853627 | I115: 1.159376508 | J115: 1.016518234
B116: 0.1233762604 | C116: 1.0856 | D116: 2015-03-27 | E116: 2015-04-27 | F116: 0.088 | G116: 0.95 | H116: 1.644853627 | I116: 1.152960916 | J116: 1.022174597
B117: 0.1169172553 | C117: 1.0856 | D117: 2015-03-27 | E117: 2015-04-27 | F117: 0.088 | G117: 0.95 | H117: 1.644853627 | I117: 1.149332938 | J117: 1.025401188
B118: 0.1649188946 | C118: 1.0856 | D118: 2015-03-27 | E118: 2015-04-27 | F118: 0.088 | G118: 0.95 | H118: 1.644853627 | I118: 1.17657039 | J118: 1.001663284
B119: 0.2039108957 | C119: 1.0856 | D119: 2015-03-27 | E119: 2015-04-27 | F119: 0.088 | G119: 0.95 | H119: 1.644853627 | I119: 1.19916995 | J119: 0.9827859343
B120: 0.1595458289 | C120: 1.0856 | D120: 2015-03-27 | E120: 2015-04-27 | F120: 0.088 | G120: 0.95 | H120: 1.644853627 | I120: 1.17348976 | J120: 1.004292837
B121: 0.174555801 | C121: 1.0856 | D121: 2015-03-27 | E121: 2015-04-27 | F121: 0.088 | G121: 0.95 | H121: 1.644853627 | I121: 1.182115953 | J121: 0.9969642634
B122: 0.1110157145 | C122: 1.0856 | D122: 2015-03-27 | E122: 2015-04-27 | F122: 0.088 | G122: 0.95 | H122: 1.644853627 | I122: 1.146028066 | J122: 1.028358201
B123: 0.1013257557 | C123: 1.0856 | D123: 2015-03-27 | E123: 2015-04-27 | F123: 0.088 | G123: 0.95 | H123: 1.644853627 | I123: 1.140622272 | J123: 1.033231938
B124: 0.07992813686 | C124: 1.0856 | D124: 2015-03-27 | E124: 2015-04-27 | F124: 0.088 | G124: 0.95 | H124: 1.644853627 | I124: 1.12877521 | J124: 1.044076225
B125: 0.09025631437 | C125: 1.0856 | D125: 2015-03-27 | E125: 2015-04-27 | F125: 0.088 | G125: 0.95 | H125: 1.644853627 | I125: 1.134478094 | J125: 1.038827781
B126: 0.1114561492 | C126: 1.0856 | D126: 2015-03-27 | E126: 2015-04-27 | F126: 0.088 | G126: 0.95 | H126: 1.644853627 | I126: 1.146274381 | J126: 1.028137224
B127: 0.1250877748 | C127: 1.0856 | D127: 2015-03-27 | E127: 2015-04-27 | F127: 0.088 | G127: 0.95 | H127: 1.644853627 | I127: 1.153924179 | J127: 1.021321315
B128: 0.09466355249 | C128: 1.0856 | D128: 2015-03-27 | E128: 2015-04-27 | F128: 0.088 | G128: 0.95 | H128: 1.644853627 | I128: 1.136920389 | J128: 1.036596204
B129: 0.09177209803 | C129: 1.0856 | D129: 2015-03-27 | E129: 2015-04-27 | F129: 0.088 | G129: 0.95 | H129: 1.644853627 | I129: 1.135317481 | J129: 1.038059732
B130: 0.2095066727 | C130: 1.0856 | D130: 2015-03-27 | E130: 2015-04-27 | F130: 0.088 | G130: 0.95 | H130: 1.644853627 | I130: 1.202448658 | J130: 0.9801061789
B131: 0.05198615122 | C131: 1.0856 | D131: 2015-03-27 | E131: 2015-04-27 | F131: 0.088 | G131: 0.95 | H131: 1.644853627 | I131: 1.113489835 | J131: 1.058408728
B132: 0.2339490747 | C132: 1.0856 | D132: 2015-03-27 | E132: 2015-04-27 | F132: 0.088 | G132: 0.95 | H132: 1.644853627 | I132: 1.216875504 | J132: 0.9684863864
B133: 0.2236896456 | C133: 1.0856 | D133: 2015-03-27 | E133: 2015-04-27 | F133: =(NETWORKDAYS(D133,E133))/250 -> 0.088 | G133: 0.95 | H133: =NORMSINV(G133) -> 1.644853627 | I133: =EXP(H133*B133*SQRT(F133))*C133 -> 1.210799035 | J133: =EXP(-H133*B133*SQRT(F133))*C133 -> 0.9733467953
B134: 0.2642610428 | C134: 1.0856 | D134: 2015-03-27 | E134: 2015-04-27 | F134: 0.088 | G134: 0.95 | H134: 1.644853627 | I134: 1.235007456 | J134: 0.9542674048
B135: 0.2158418708 | C135: 1.0856 | D135: 2015-03-27 | E135: 2015-04-27 | F135: 0.088 | G135: 0.95 | H135: 1.644853627 | I135: 1.206171433 | J135: 0.9770811409
B136: 0.121893062 | C136: 1.0856 | D136: 2015-03-27 | E136: 2015-04-27 | F136: 0.088 | G136: 0.95 | H136: 1.644853627 | I136: 1.152126802 | J136: 1.022914629
B137: 0.1076655101 | C137: 1.0856 | D137: 2015-03-27 | E137: 2015-04-27 | F137: 0.088 | G137: 0.95 | H137: 1.644853627 | I137: 1.144156176 | J137: 1.03004064
B138: 0.1221201901 | C138: 1.0856 | D138: 2015-03-27 | E138: 2015-04-27 | F138: 0.088 | G138: 0.95 | H138: 1.644853627 | I138: 1.152254494 | J138: 1.02280127
B139: 0.1047102893 | C139: 1.0856 | D139: 2015-03-27 | E139: 2015-04-27 | F139: 0.088 | G139: 0.95 | H139: 1.644853627 | I139: 1.142507517 | J139: 1.031527007
B140: 0.09358192968 | C140: 1.0856 | D140: 2015-03-27 | E140: 2015-04-27 | F140: 0.088 | G140: 0.95 | H140: 1.644853627 | I140: 1.136320516 | J140: 1.037143432
B141: 0.07952207783 | C141: 1.0856 | D141: 2015-03-27 | E141: 2015-04-27 | F141: 0.088 | G141: 0.95 | H141: 1.644853627 | I141: 1.128551584 | J141: 1.044283112
B142: 0.08630388346 | C142: 1.0856 | D142: 2015-03-27 | E142: 2015-04-27 | F142: 0.088 | G142: 0.95 | H142: 1.644853627 | I142: 1.132292294 | J142: 1.040833154
B143: 0.08595113392 | C143: 1.0856 | D143: 2015-03-27 | E143: 2015-04-27 | F143: 0.088 | G143: 0.95 | H143: 1.644853627 | I143: 1.132097419 | J143: 1.041012319
B144: 0.0714516437 | C144: 1.0856 | D144: 2015-03-27 | E144: 2015-04-27 | F144: 0.088 | G144: 0.95 | H144: 1.644853627 | I144: 1.124116191 | J144: 1.04840351
B145: 0.1646061191 | C145: 1.0856 | D145: 2015-03-27 | E145: 2015-04-27 | F145: 0.088 | G145: 0.95 | H145: 1.644853627 | I145: 1.17639084 | J145: 1.001816166
B146: 0.1333091167 | C146: 1.0856 | D146: 2015-03-27 | E146: 2015-04-27 | F146: 0.088 | G146: 0.95 | H146: 1.644853627 | I146: 1.158562491 | J146: 1.017232449
B147: 0.1384842744 | C147: 1.0856 | D147: 2015-03-27 | E147: 2015-04-27 | F147: 0.088 | G147: 0.95 | H147: 1.644853627 | I147: 1.161491766 | J147: 1.014666995
B148: 0.111445281 | C148: 1.0856 | D148: 2015-03-27 | E148: 2015-04-27 | F148: 0.088 | G148: 0.95 | H148: 1.644853627 | I148: 1.146268303 | J148: 1.028142676
B149: 0.1482759724 | C149: 1.0856 | D149: 2015-03-27 | E149: 2015-04-27 | F149: 0.088 | G149: 0.95 | H149: 1.644853627 | I149: 1.167054402 | J149: 1.009830697
B150: 0.1068341949 | C150: 1.0856 | D150: 2015-03-27 | E150: 2015-04-27 | F150: 0.088 | G150: 0.95 | H150: 1.644853627 | I150: 1.143692162 | J150: 1.030458544
B151: 0.1057127744 | C151: 1.0856 | D151: 2015-03-27 | E151: 2015-04-27 | F151: 0.088 | G151: 0.95 | H151: 1.644853627 | I151: 1.143066517 | J151: 1.031022554
B152: 0.1069185878 | C152: 1.0856 | D152: 2015-03-27 | E152: 2015-04-27 | F152: 0.088 | G152: 0.95 | H152: 1.644853627 | I152: 1.143739258 | J152: 1.030416112
B153: 0.1527585488 | C153: 1.0856 | D153: 2015-03-27 | E153: 2015-04-27 | F153: 0.088 | G153: 0.95 | H153: 1.644853627 | I153: 1.169609823 | J153: 1.007624369
B154: 0.1364990047 | C154: 1.0856 | D154: 2015-03-27 | E154: 2015-04-27 | F154: 0.088 | G154: 0.95 | H154: 1.644853627 | I154: 1.160367177 | J154: 1.015650376
B155: 0.1385480793 | C155: 1.0856 | D155: 2015-03-27 | E155: 2015-04-27 | F155: 0.088 | G155: 0.95 | H155: 1.644853627 | I155: 1.161527928 | J155: 1.014635406
B156: 0.1061224045 | C156: 1.0856 | D156: 2015-03-27 | E156: 2015-04-27 | F156: 0.088 | G156: 0.95 | H156: 1.644853627 | I156: 1.143295012 | J156: 1.030816498
B157: 0.09219407087 | C157: 1.0856 | D157: 2015-03-27 | E157: 2015-04-27 | F157: 0.088 | G157: 0.95 | H157: 1.644853627 | I157: 1.135551265 | J157: 1.037846019
B158: 0.07976814028 | C158: 1.0856 | D158: 2015-03-27 | E158: 2015-04-27 | F158: 0.088 | G158: 0.95 | H158: 1.644853627 | I158: 1.128687091 | J158: 1.044157739
B159: 0.08369933173 | C159: 1.0856 | D159: 2015-03-27 | E159: 2015-04-27 | F159: 0.088 | G159: 0.95 | H159: 1.644853627 | I159: 1.13085421 | J159: 1.04215676
B160: 0.1175644696 | C160: 1.0856 | D160: 2015-03-27 | E160: 2015-04-27 | F160: 0.088 | G160: 0.95 | H160: 1.644853627 | I160: 1.149695959 | J160: 1.025077414
B161: 0.1033511171 | C161: 1.0856 | D161: 2015-03-27 | E161: 2015-04-27 | F161: 0.088 | G161: 0.95 | H161: 1.644853627 | I161: 1.14175006 | J161: 1.03221134
B162: 0.093913441 | C162: 1.0856 | D162: 2015-03-27 | E162: 2015-04-27 | F162: 0.088 | G162: 0.95 | H162: 1.644853627 | I162: 1.13650434 | J162: 1.036975679
B163: 0.08371338805 | C163: 1.0856 | D163: 2015-03-27 | E163: 2015-04-27 | F163: 0.088 | G163: 0.95 | H163: 1.644853627 | I163: 1.130861967 | J163: 1.042149612
B164: 0.08047935768 | C164: 1.0856 | D164: 2015-03-27 | E164: 2015-04-27 | F164: 0.088 | G164: 0.95 | H164: 1.644853627 | I164: 1.12907885 | J164: 1.043795444
B165: 0.07797014582 | C165: 1.0856 | D165: 2015-03-27 | E165: 2015-04-27 | F165: =(NETWORKDAYS(D165,E165))/250 -> 0.088 | G165: 0.95 | H165: =NORMSINV(G165) -> 1.644853627 | I165: =EXP(H165*B165*SQRT(F165))*C165 -> 1.127697308 | J165: 1.045074199
B166: 0.07471906151 | C166: 1.0856 | D166: 2015-03-27 | E166: 2015-04-27 | F166: 0.088 | G166: 0.95 | H166: 1.644853627 | I166: 1.125909812 | J166: 1.046733359
B167: 0.06675538975 | C167: 1.0856 | D167: 2015-03-27 | E167: 2015-04-27 | F167: 0.088 | G167: 0.95 | H167: 1.644853627 | I167: 1.121543226 | J167: 1.050808683

Sheet Result test
A1: RESULT TESTING AND SUMMARISING
A2: Expiration Date | B2: Strike rate | C2: Option price | D2: Implied volatility | E2: Spot rate | F2: Expected Max Rate | G2: Expected Min Rate | J2: Date | K2: Actual EUR/USD rate | L2: Number of max rate error | M2: Number of min rate error | O2: Implied volatility quartile
A3: 2015-04-17 | B3: 107.5 | C3: 1.35 | D3: 0.06387626955 | E3: 1.0856 | F3: 1.119968738 | G3: 1.052285943 | J3: 2015-03-27 | K3: 1.08962 | L3: =COUNTIF($F$3:$F$165,"<"&K3) -> 0 | M3: =COUNTIF($G$3:$G$165,">"&K3) -> 0 | O3: Quart = 0 | P3: =QUARTILE(D3:D165, 1) -> 0.09564832248
A4: 2015-04-17 | B4: 108 | C4: 0.82 | D4: 0.04495100961 | E4: 1.0856 | F4: 1.109674062 | G4: 1.062048217 | J4: 2015-03-30 | K4: 1.0833 | L4: 0 | M4: 0 | O4: Quart = 1 | P4: =QUARTILE(D4:D166, 0) -> 0.04105207086
A5: 2015-04-17 | B5: 109 | C5: 1.75 | D5: 0.1788106004 | E5: 1.0856 | F5: 1.18457269 | G5: 0.9948966158 | J5: 2015-03-31 | K5: 1.0731 | L5: 0 | M5: 0
A6: 2015-04-17 | B6: 109.5 | C6: 0.5 | D6: 0.08114144581 | E6: 1.0856 | F6: 1.129443671 | G6: 1.043458289 | J6: 2015-04-01 | K6: 1.0763 | L6: 0 | M6: 0
A7: 2015-04-17 | B7: 110 | C7: 0.36 | D7: 0.08194041982 | E7: 1.0856 | F7: 1.129884074 | G7: 1.043051573 | J7: 2015-04-02 | K7: 1.088 | L7: 0 | M7: 0
A8: 2015-04-17 | B8: 110.5 | C8: 1.11 | D8: 0.1743845721 | E8: 1.0856 | F8: 1.182017191 | G8: 0.9970475631 | J8: 2015-04-03 | K8: 1.0969 | L8: 0 | M8: 0
A9: 2015-04-17 | B9: 111 | C9: 0.7 | D9: 0.1480023811 | E9: 1.0856 | F9: 1.166898614 | G9: 1.009965515 | J9: 2015-04-06 | K9: 1.0922 | L9: 0 | M9: 0
A10: 2015-04-17 | B10: 112 | C10: 0.11 | D10: 0.09266981074 | E10: 1.0856 | F10: 1.135814896 | G10: 1.037605128 | J10: 2015-04-07 | K10: 1.0814 | L10: 0 | M10: 0
A11: 2015-04-17 | B11: 112.5 | C11: 0.45 | D11: 0.1580043667 | E11: 1.0856 | F11: 1.172607458 | G11: 1.005048494 | J11: 2015-04-08 | K11: 1.0781 | L11: 0 | M11: 0
A12: 2015-04-17 | B12: 113 | C12: 0.35 | D12: 0.1556051495 | E12: 1.0856 | F12: 1.171235513 | G12: 1.006225773 | J12: 2015-04-09 | K12: 1.0659 | L12: 0 | M12: 0
A13: 2015-04-17 | B13: 114 | C13: 0.24 | D13: 0.1584385681 | E13: 1.0856 | F13: 1.172855919 | G13: 1.004835582 | J13: 2015-04-10 | K13: 1.0604 | L13: 0 | M13: 3
A14: 2015-04-17 | B14: 114 | C14: 0.24 | D14: 0.2132387851 | E14: 1.0856 | F14: 1.20464038 | G14: 0.9783229748 | J14: 2015-04-13 | K14: 1.0567 | L14: 0 | M14: 4
A15: 2015-04-17 | B15: 115 | C15: 0.44 | D15: 0.1584385681 | E15: 1.0856 | F15: 1.172855919 | G15: 1.004835582 | J15: 2015-04-14 | K15: 1.0655 | L15: 0 | M15: 0
A16: 2015-04-17 | B16: 115 | C16: 0.44 | D16: 0.2133306412 | E16: 1.0856 | F16: 1.204694374 | G16: 0.9782791269 | J16: 2015-04-15 | K16: 1.0684 | L16: 0 | M16: 0
A17: 2015-04-17 | B17: 116 | C17: 0.21 | D17: 0.1907116727 | E17: 1.0856 | F17: 1.19147156 | G17: 0.9891359554 | J17: 2015-04-16 | K17: 1.0761 | L17: 0 | M17: 0
A18: 2015-04-17 | B18: 116.5 | C18: 1.37 | D18: 0.3700266431 | E18: 1.0856 | F18: 1.300416415 | G18: 0.9062692123 | J18: 2015-04-17 | K18: 1.0806 | L18: 0 | M18: 0
A19: 2015-04-17 | B19: 117 | C19: 1.19 | D19: 0.360633035 | E19: 1.0856 | F19: 1.294469543 | G19: 0.9104326679 | J19: 2015-04-20 | K19: 1.0738 | L19: 0 | M19: 0
A20: 2015-04-17 | B20: 117.5 | C20: 1.03 | D20: 0.3519529924 | E20: 1.0856 | F20: 1.288998591 | G20: 0.9142968564 | J20: 2015-04-21 | K20: 1.0736 | L20: 0 | M20: 0
A21: 2015-05-15 | B21: 106.5 | C21: 3.34 | D21: 0.1325460528 | E21: 1.0856 | F21: 1.158131203 | G21: 1.017611267 | J21: 2015-04-22 | K21: 1.0725 | L21: 0 | M21: 0
A22: 2015-05-15 | B22: 107 | C22: 3.28 | D22: 0.1485 | E22: 1.0856 | F22: 1.167181983 | G22: 1.009720316 | J22: 2015-03-27 | K22: 1.0828 | L22: 0 | M22: 0
A23: 2015-05-15 | B23: 107.5 | C23: 3.28 | D23: 0.1663021789 | E23: 1.0856 | F23: 1.177364799 | G23: 1.000987426 | J23: Total | L23: 0 | M23: 4
A24: 2015-05-15 | B24: 107.5 | C24: 2.65 | D24: 0.1271900721 | E24: 1.0856 | F24: 1.155108482 | G24: 1.02027418
A25: 2015-05-15 | B25: 108.5 | C25: 1.13 | D25: 0.06703101085 | E25: 1.0856 | F25: 1.121694069 | G25: 1.050667372
A26: 2015-05-15 | B26: 109 | C26: 2.29 | D26: 0.152176904 | E26: 1.0856 | F26: 1.169277924 | G26: 1.007910383
A27: 2015-05-15 | B27: 109.5 | C27: 2.1 | D27: 0.1541388499 | E27: 1.0856 | F27: 1.170397829 | G27: 1.006945955
A28: 2015-05-15 | B28: 110 | C28: 1.06 | D28: 0.1018057175 | E28: 1.0856 | F28: 1.14088943 | G28: 1.03298999
A29: 2015-05-15 | B29: 110.5 | C29: 0.98 | D29: 0.1077675468 | E29: 1.0856 | F29: 1.144213143 | G29: 1.029989358
A30: 2015-05-15 | B30: 111 | C30: 2.17 | D30: 0.1953863182 | E30: 1.0856 | F30: 1.194192358 | G30: 0.9868823491
A31: 2015-05-15 | B31: 112 | C31: 0.34 | D31: 0.08746371773 | E31: 1.0856 | F31: 1.132933276 | G31: 1.04024428
A32: 2015-05-15 | B32: 112.5 | C32: 1.69 | D32: 0.1968248146 | E32: 1.0856 | F32: 1.19503086 | G32: 0.9861898961
A33: 2015-05-15 | B33: 113.5 | C33: 0.32 | D33: 0.1079266465 | E33: 1.0856 | F33: 1.144301973 | G33: 1.029909401
A34: 2015-05-15 | B34: 116 | C34: 0.25 | D34: 0.1330448376 | E34: 1.0856 | F34: 1.158413101 | G34: 1.017363632
A35: 2015-05-15 | B35: 117 | C35: 0.33 | D35: 0.1564209668 | E35: 1.0856 | F35: 1.171701842 | G35: 1.005825303
A36: 2015-05-15 | B36: 119.5 | C36: 0.05 | D36: 0.1281838667 | E36: 1.0856 | F36: 1.155668747 | G36: 1.019779555
A37: 2015-06-19 | B37: 106 | C37: 4.55 | D37: 0.1470135161 | E37: 1.0856 | F37: 1.166335711 | G37: 1.01045295
A38: 2015-06-19 | B38: 106.5 | C38: 2.31 | D38: 0.04479523931 | E38: 1.0856 | F38: 1.109589723 | G38: 1.062128944
A39: 2015-06-19 | B39: 107 | C39: 3.37 | D39: 0.1185511581 | E39: 1.0856 | F39: 1.15024961 | G39: 1.024584012
A40: 2015-06-19 | B40: 107.5 | C40: 3.75 | D40: 0.1501194901 | E40: 1.0856 | F40: 1.168104675 | G40: 1.008922732
A41: 2015-06-19 | B41: 108 | C41: 2.93 | D41: 0.1239150568 | E41: 1.0856 | F41: 1.153264071 | G41: 1.021905901
A42: 2015-06-19 | B42: 108.5 | C42: 1.8 | D42: 0.08288258527 | E42: 1.0856 | F42: 1.130403626 | G42: 1.042572169
A43: 2015-06-19 | B43: 109 | C43: 1.58 | D43: 0.08369195163 | E43: 1.0856 | F43: 1.130850138 | G43: 1.042160513
A44: 2015-06-19 | B44: 109.5 | C44: 1.38 | D44: 0.08442861346 | E44: 1.0856 | F44: 1.131256694 | G44: 1.041785977
A45: 2015-06-19 | B45: 110 | C45: 2.1 | D45: 0.1283140369 | E45: 1.0856 | F45: 1.155742152 | G45: 1.019714785
A46: 2015-06-19 | B46: 111 | C46: 1.52 | D46: 0.1183122201 | E46: 1.0856 | F46: 1.150115512 | G46: 1.024703473
A47: 2015-06-19 | B47: 112 | C47: 1.5 | D47: 0.1336300011 | E47: 1.0856 | F47: 1.158743905 | G47: 1.01707319
A48: 2015-06-19 | B48: 114 | C48: 0.31 | D48: 0.08756042053 | E48: 1.0856 | F48: 1.132986736 | G48: 1.040195196
A49: 2015-06-19 | B49: 114.5 | C49: 2.38 | D49: 0.2174401202 | E49: 1.0856 | F49: 1.207112437 | G49: 0.9763194575
A50: 2015-06-19 | B50: 115 | C50: 0.49 | D50: 0.1132099739 | E50: 1.0856 | F50: 1.147255743 | G50: 1.027257756
A51: 2015-06-19 | B51: 116 | C51: 0.3 | D51: 0.1073599969 | E51: 1.0856 | F51: 1.143985626 | G51: 1.030194203
A52: 2015-06-19 | B52: 117 | C52: 0.18 | D52: 0.1031614671 | E52: 1.0856 | F52: 1.141644409 | G52: 1.032306864
A53: 2015-06-19 | B53: 118 | C53: 2.55 | D53: 0.2760495516 | E53: 1.0856 | F53: 1.24213183 | G53: 0.9487941068
A54: 2015-06-19 | B54: 119 | C54: 0.09 | D54: 0.104938142 | E54: 1.0856 | F54: 1.142634547 | G54: 1.031412329
A55: 2015-06-19 | B55: 119.5 | C55: 2.31 | D55: 0.2823257335 | E55: 1.0856 | F55: 1.245941584 | G55: 0.9458929495
A56: 2015-09-18 | B56: 105 | C56: 8.25 | D56: 0.2091335089 | E56: 1.0856 | F56: 1.202229734 | G56: 0.9802846553
A57: 2015-09-18 | B57: 106 | C57: 3.65 | D57: 0.07038285944 | E57: 1.0856 | F57: 1.123530111 | G57: 1.0489504
A58: 2015-09-18 | B58: 111 | C58: 1.85 | D58: 0.09371104077 | E58: 1.0856 | F58: 1.136392105 | G58: 1.037078096
A59: 2015-09-18 | B59: 112 | C59: 2.27 | D59: 0.1199634868 | E59: 1.0856 | F59: 1.15104256 | G59: 1.023878178
A60: 2015-09-18 | B60: 113 | C60: 1.85 | D60: 0.1164562766 | E60: 1.0856 | F60: 1.149074446 | G60: 1.025631858
A61: 2015-09-18 | B61: 114 | C61: 1.52 | D61: 0.1145889235 | E61: 1.0856 | F61: 1.148027932 | G61: 1.0265668
A62: 2015-09-18 | B62: 115 | C62: 1.2 | D62: 0.1114411842 | E62: 1.0856 | F62: 1.146266011 | G62: 1.028144731
A63: 2015-09-18 | B63: 117 | C63: 0.85 | D63: 0.1129449372 | E63: 1.0856 | F63: 1.147107387 | G63: 1.027390612
A64: 2015-09-18 | B64: 118 | C64: 0.42 | D64: 0.09662114566 | E64: 1.0856 | F64: 1.138006886 | G64: 1.035606528
A65: 2015-12-18 | B65: 100 | C65: 10.9 | D65: 0.154981289 | E65: 1.0856 | F65: 1.170879034 | G65: 1.006532123
A66: 2015-12-18 | B66: 106 | C66: 4.42 | D66: 0.07961121912 | E66: 1.0856 | F66: 1.128600672 | G66: 1.044237691
A67: 2015-12-18 | B67: 109 | C67: 2.87 | D67: 0.08156428413 | E67: 1.0856 | F67: 1.129676722 | G67: 1.043243024
A68: 2015-12-18 | B68: 110 | C68: 4.05 | D68: 0.1245624984 | E68: 1.0856 | F68: 1.153628461 | G68: 1.021583118
A69: 2015-12-18 | B69: 111 | C69: 2.18 | D69: 0.08526915355 | E69: 1.0856 | F69: 1.131720757 | G69: 1.041358792
A70: 2015-12-18 | B70: 112 | C70: 3.02 | D70: 0.1181469312 | E70: 1.0856 | F70: 1.150022758 | G70: 1.02478612
A71: 2015-12-18 | B71: 112.5 | C71: 2.86 | D71: 0.1186041574 | E71: 1.0856 | F71: 1.150279356 | G71: 1.024557516
A72: 2015-12-18 | B72: 114 | C72: 2.17 | D72: 0.112633111 | E72: 1.0856 | F72: 1.146932864 | G72: 1.027546945
A73: 2015-12-18 | B73: 115 | C73: 1.59 | D73: 0.1032274285 | E73: 1.0856 | F73: 1.141681154 | G73: 1.032273639
A74: 2015-12-18 | B74: 116 | C74: 1.11 | D74: 0.0946754993 | E74: 1.0856 | F74: 1.136927017 | G74: 1.036590161
A75: 2015-12-18 | B75: 117 | C75: 1.05 | D75: 0.09938975166 | E75: 1.0856 | F75: 1.139545282 | G75: 1.03420845
A76: 2015-12-18 | B76: 118 | C76: 0.63 | D76: 0.08877226899 | E76: 1.0856 | F76: 1.133656883 | G76: 1.039580298
A77: 2015-12-18 | B77: 119 | C77: 0.71 | D77: 0.09831691537 | E77: 1.0856 | F77: 1.138948906 | G77: 1.034749982
A78: 2016-03-18 | B78: 115.5 | C78: 2.45 | D78: 0.1152585213 | E78: 1.0856 | F78: 1.148403083 | G78: 1.026231449
A79: 2015-04-17 | B79: 104.5 | C79: 0.83 | D79: 0.2153972878 | E79: 1.0856 | F79: 1.205909806 | G79: 0.9772931229
A80: 2015-04-17 | B80: 105 | C80: 0.68 | D80: 0.1826887874 | E80: 1.0856 | F80: 1.186816417 | G80: 0.9930157212
A81: 2015-04-17 | B81: 105.5 | C81: 0.62 | D81: 0.1609077459 | E81: 1.0856 | F81: 1.174269847 | G81: 1.003625668
A82: 2015-04-17 | B82: 106 | C82: 1.35 | D82: 0.2232934659 | E82: 1.0856 | F82: 1.210564994 | G82: 0.9735349739
A83: 2015-04-17 | B83: 106.5 | C83: 1.59 | D83: 0.2289725912 | E83: 1.0856 | F83: 1.213924226 | G83: 0.9708409589
A84: 2015-04-17 | B84: 107 | C84: 0.72 | D84: 0.1250131188 | E84: 1.0856 | F84: 1.153882145 | G84: 1.02135852
A85: 2015-04-17 | B85: 107.5 | C85: 1.52 | D85: 0.1839407994 | E85: 1.0856 | F85: 1.187541676 | G85: 0.9924092635
A86: 2015-04-17 | B86: 108 | C86: 0.86 | D86: 0.1022345022 | E86: 1.0856 | F86: 1.141128154 | G86: 1.032773888
A87: 2015-04-17 | B87: 108.5 | C87: 1.22 | D87: 0.1140453911 | E87: 1.0856 | F87: 1.147723501 | G87: 1.026839094
A88: 2015-04-17 | B88: 109.5 | C88: 1.07 | D88: 0.04105207086 | E88: 1.0856 | F88: 1.107564961 | G88: 1.064070642
A89: 2015-04-17 | B89: 110 | C89: 1.75 | D89: 0.07617232886 | E89: 1.0856 | F89: 1.12670849 | G89: 1.045991373
A90: 2015-04-17 | B90: 110.5 | C90: 2.41 | D90: 0.1083114654 | E90: 1.0856 | F90: 1.144516858 | G90: 1.029716034
A91: 2015-04-17 | B91: 111 | C91: 2.62 | D91: 0.08416460387 | E91: 1.0856 | F91: 1.131110973 | G91: 1.04192019
A92: 2015-04-17 | B92: 112.5 | C92: 7.5 | D92: 0.4752929356 | E92: 1.0856 | F92: 1.368956025 | G92: 0.8608949728
A93: 2015-04-17 | B93: 115 | C93: 7.6 | D93: 0.3076359479 | E93: 1.0856 | F93: 1.261424281 | G93: 0.934283078
A94: 2015-05-15 | B94: 100 | C94: 0.35 | D94: 0.1736510296 | E94: 1.0856 | F94: 1.181594192 | G94: 0.9974044968
A95: 2015-05-15 | B95: 102 | C95: 0.24 | D95: 0.1278207857 | E95: 1.0856 | F95: 1.155464024 | G95: 1.019960237
A96: 2015-05-15 | B96: 102.5 | C96: 0.34 | D96: 0.1331504239 | E96: 1.0856 | F96: 1.158472784 | G96: 1.017311219
A97: 2015-05-15 | B97: 103 | C97: 1.05 | D97: 0.191108505 | E97: 1.0856 | F97: 1.191702289 | G97: 0.9889444463
A98: 2015-05-15 | B98: 104 | C98: 0.7 | D98: 0.1425816795 | E98: 1.0856 | F98: 1.163816257 | G98: 1.0126404
A99: 2015-05-15 | B99: 105 | C99: 0.48 | D99: 0.1051451314 | E99: 1.0856 | F99: 1.142749958 | G99: 1.031308163
A100: 2015-05-15 | B100: 105.5 | C100: 1.67 | D100: 0.182149149 | E100: 1.0856 | F100: 1.186503954 | G100: 0.9932772291
A101: 2015-05-15 | B101: 106 | C101: 1.2 | D101: 0.1386778701 | E101: 1.0856 | F101: 1.16160149 | G101: 1.01457115
A102: 2015-05-15 | B102: 106.5 | C102: 2.14 | D102: 0.1879680353 | E102: 1.0856 | F102: 1.18987756 | G102: 0.9904610352
A103: 2015-05-15 | B103: 107 | C103: 2.33 | D103: 0.1866891461 | E103: 1.0856 | F103: 1.189135279 | G103: 0.9910792999
A104: 2015-05-15 | B104: 107.5 | C104: 2.59 | D104: 0.1889752593 | E104: 1.0856 | F104: 1.19046249 | G104: 0.9899743756
A105: 2015-05-15 | B105: 108 | C105: 2.88 | D105: 0.1922633856 | E105: 1.0856 | F105: 1.19237402 | G105: 0.988387318
A106: 2015-05-15 | B106: 109 | C106: 1.91 | D106: 0.101992322 | E106: 1.0856 | F106: 1.140993315 | G106: 1.032895938
A107: 2015-05-15 | B107: 109.5 | C107: 2.34 | D107: 0.1109125068 | E107: 1.0856 | F107: 1.145970354 | G107: 1.02840999
A108: 2015-05-15 | B108: 110 | C108: 2.58 | D108: 0.1067368524 | E108: 1.0856 | F108: 1.14363784 | G108: 1.03050749
A109: 2015-06-19 | B109: 100 | C109: 0.41 | D109: 0.1395403621 | E109: 1.0856 | F109: 1.162090449 | G109: 1.014144262
A110: 2015-06-19 | B110: 101 | C110: 0.79 | D110: 0.1584017624 | E110: 1.0856 | F110: 1.172834856 | G110: 1.004853628
A111: 2015-06-19 | B111: 102 | C111: 1.25 | D111: 0.1747246046 | E111: 1.0856 | F111: 1.182213323 | G111: 0.9968821504
A112: 2015-06-19 | B112: 103 | C112: 0.55 | D112: 0.1130502127 | E112: 1.0856 | F112: 1.147166313 | G112: 1.027337838
A113: 2015-06-19 | B113: 103.5 | C113: 0.98 | D113: 0.1347485532 | E113: 1.0856 | F113: 1.159376508 | G113: 1.016518234
A114: 2015-06-19 | B114: 104 | C114: 0.92 | D114: 0.1233762604 | E114: 1.0856 | F114: 1.152960916 | G114: 1.022174597
A115: 2015-06-19 | B115: 105 | C115: 1.08 | D115: 0.1169172553 | E115: 1.0856 | F115: 1.149332938 | G115: 1.025401188
A116: 2015-06-19 | B116: 105.5 | C116: 2.16 | D116: 0.1649188946 | E116: 1.0856 | F116: 1.17657039 | G116: 1.001663284
A117: 2015-06-19 | B117: 106 | C117: 3.15 | D117: 0.2039108957 | E117: 1.0856 | F117: 1.19916995 | G117: 0.9827859343
A118: 2015-06-19 | B118: 106.5 | C118: 2.45 | D118: 0.1595458289 | E118: 1.0856 | F118: 1.17348976 | G118: 1.004292837
A119: 2015-06-19 | B119: 107 | C119: 2.98 | D119: 0.174555801 | E119: 1.0856 | F119: 1.182115953 | G119: 0.9969642634
A120: 2015-06-19 | B120: 108 | C120: 2.1 | D120: 0.1110157145 | E120: 1.0856 | F120: 1.146028066 | G120: 1.028358201
A121: 2015-06-19 | B121: 109 | C121: 2.4 | D121: 0.1013257557 | E121: 1.0856 | F121: 1.140622272 | G121: 1.033231938
A122: 2015-06-19 | B122: 109.5 | C122: 2.23 | D122: 0.07992813686 | E122: 1.0856 | F122: 1.12877521 | G122: 1.044076225
A123: 2015-06-19 | B123: 110 | C123: 2.75 | D123: 0.09025631437 | E123: 1.0856 | F123: 1.134478094 | G123: 1.038827781
A124: 2015-06-19 | B124: 110.5 | C124: 3.5 | D124: 0.1114561492 | E124: 1.0856 | F124: 1.146274381 | G124: 1.028137224
A125: 2015-06-19 | B125: 111 | C125: 4.1 | D125: 0.1250877748 | E125: 1.0856 | F125: 1.153924179 | G125: 1.021321315
A126: 2015-06-19 | B126: 111.5 | C126: 3.85 | D126: 0.09466355249 | E126: 1.0856 | F126: 1.136920389 | G126: 1.036596204
A127: 2015-06-19 | B127: 112 | C127: 4.17 | D127: 0.09177209803 | E127: 1.0856 | F127: 1.135317481 | G127: 1.038059732
A128: 2015-06-19 | B128: 112.5 | C128: 6.8 | D128: 0.2095066727 | E128: 1.0856 | F128: 1.202448658 | G128: 0.9801061789
A129: 2015-06-19 | B129: 113.5 | C129: 4.99 | D129: 0.05198615122 | E129: 1.0856 | F129: 1.113489835 | G129: 1.058408728
A130: 2015-06-19 | B130: 114 | C130: 8.3 | D130: 0.2339490747 | E130: 1.0856 | F130: 1.216875504 | G130: 0.9684863864
A131: 2015-06-19 | B131: 115 | C131: 8.8 | D131: 0.2236896456 | E131: 1.0856 | F131: 1.210799035 | G131: 0.9733467953
A132: 2015-06-19 | B132: 116 | C132: 10.3 | D132: 0.2642610428 | E132: 1.0856 | F132: 1.235007456 | G132: 0.9542674048
A133: 2015-06-19 | B133: 117 | C133: 10.15 | D133: 0.2158418708 | E133: 1.0856 | F133: 1.206171433 | G133: 0.9770811409
A134: 2015-09-18 | B134: 99 | C134: 0.66 | D134: 0.121893062 | E134: 1.0856 | F134: 1.152126802 | G134: 1.022914629
A135: 2015-09-18 | B135: 106 | C135: 2.15 | D135: 0.1076655101 | E135: 1.0856 | F135: 1.144156176 | G135: 1.03004064
A136: 2015-09-18 | B136: 107 | C136: 3 | D136: 0.1221201901 | E136: 1.0856 | F136: 1.152254494 | G136: 1.02280127
A137: 2015-09-18 | B137: 108 | C137: 2.94 | D137: 0.1047102893 | E137: 1.0856 | F137: 1.142507517 | G137: 1.031527007
A138: 2015-09-18 | B138: 109 | C138: 3.11 | D138: 0.09358192968 | E138: 1.0856 | F138: 1.136320516 | G138: 1.037143432
A139: 2015-09-18 | B139: 110 | C139: 3.25 | D139: 0.07952207783 | E139: 1.0856 | F139: 1.128551584 | G139: 1.044283112
A140: 2015-09-18 | B140: 111 | C140: 4.08 | D140: 0.08630388346 | E140: 1.0856 | F140: 1.132292294 | G140: 1.040833154
A141: 2015-09-18 | B141: 112 | C141: 4.75 | D141: 0.08595113392 | E141: 1.0856 | F141: 1.132097419 | G141: 1.041012319
A142: 2015-09-18 | B142: 113 | C142: 5.13 | D142: 0.0714516437 | E142: 1.0856 | F142: 1.124116191 | G142: 1.04840351
A143: 2015-09-18 | B143: 115 | C143: 9.05 | D143: 0.1646061191 | E143: 1.0856 | F143: 1.17639084 | G143: 1.001816166
A144: 2015-12-18 | B144: 100 | C144: 1.72 | D144: 0.1333091167 | E144: 1.0856 | F144: 1.158562491 | G144: 1.017232449
A145: 2015-12-18 | B145: 101 | C145: 2.15 | D145: 0.1384842744 | E145: 1.0856 | F145: 1.161491766 | G145: 1.014666995
A146: 2015-12-18 | B146: 102 | C146: 1.62 | D146: 0.111445281 | E146: 1.0856 | F146: 1.146268303 | G146: 1.028142676
A147: 2015-12-18 | B147: 103 | C147: 3.13 | D147: 0.1482759724 | E147: 1.0856 | F147: 1.167054402 | G147: 1.009830697
A148: 2015-12-18 | B148: 104 | C148: 2.09 | D148: 0.1068341949 | E148: 1.0856 | F148: 1.143692162 | G148: 1.030458544
A149: 2015-12-18 | B149: 105 | C149: 2.41 | D149: 0.1057127744 | E149: 1.0856 | F149: 1.143066517 | G149: 1.031022554
A150: 2015-12-18 | B150: 106 | C150: 2.85 | D150: 0.1069185878 | E150: 1.0856 | F150: 1.143739258 | G150: 1.030416112
A151: 2015-12-18 | B151: 108 | C151: 5.49 | D151: 0.1527585488 | E151: 1.0856 | F151: 1.169609823 | G151: 1.007624369
A152: 2015-12-18 | B152: 109 | C152: 5.4 | D152: 0.1364990047 | E152: 1.0856 | F152: 1.160367177 | G152: 1.015650376
A153: 2015-12-18 | B153: 110 | C153: 6.03 | D153: 0.1385480793 | E153: 1.0856 | F153: 1.161527928 | G153: 1.014635406
A154: 2015-12-18 | B154: 111 | C154: 5.4 | D154: 0.1061224045 | E154: 1.0856 | F154: 1.143295012 | G154: 1.030816498
A155: 2015-12-18 | B155: 112 | C155: 5.53 | D155: 0.09219407087 | E155: 1.0856 | F155: 1.135551265 | G155: 1.037846019
A156: 2015-12-18 | B156: 113 | C156: 5.8 | D156: 0.07976814028 | E156: 1.0856 | F156: 1.128687091 | G156: 1.044157739
A157: 2015-12-18 | B157: 114 | C157: 6.67 | D157: 0.08369933173 | E157: 1.0856 | F157: 1.13085421 | G157: 1.04215676
A158: 2016-03-18 | B158: 100 | C158: 1.8 | D158: 0.1175644696 | E158: 1.0856 | F158: 1.149695959 | G158: 1.025077414
A159: 2016-03-18 | B159: 105 | C159: 2.9 | D159: 0.1033511171 | E159: 1.0856 | F159: 1.14175006 | G159: 1.03221134
A160: 2016-03-18 | B160: 109 | C160: 4.35 | D160: 0.093913441 | E160: 1.0856 | F160: 1.13650434 | G160: 1.036975679
A161: 2016-03-18 | B161: 112 | C161: 5.7 | D161: 0.08371338805 | E161: 1.0856 | F161: 1.130861967 | G161: 1.042149612
A162: 2016-03-18 | B162: 113 | C162: 6.25 | D162: 0.08047935768 | E162: 1.0856 | F162: 1.12907885 | G162: 1.043795444
A163: 2016-03-18 | B163: 113.5 | C163: 6.51 | D163: 0.07797014582 | E163: 1.0856 | F163: 1.127697308 | G163: 1.045074199
A164: 2016-03-18 | B164: 114.5 | C164: 7.14 | D164: 0.07471906151 | E164: 1.0856 | F164: 1.125909812 | G164: 1.046733359
A165: 2016-03-18 | B165: 116 | C165: 8.1 | D165: 0.06675538975 | E165: 1.0856 | F165: 1.121543226 | G165: 1.050808683
